Workbook

Sheet Home
B3: # | C3: Version 2.0 October 2020 | D3: Type
B4: 1 | C4: Instructions | D4: Reference
B5: 2 | C5: Simple LED Payback | D5: Cost Calculator
B6: 3A | C6: Simple Cost of Waiting Estimate | D6: Qualification
B7: 3B | C7: Cost of Procrastination | D7: Qualification
B8: 4 | C8: Recommended Light Levels | D8: Reference
B9: Industrial/Warehouse
B10: 5 | C10: Reference Sheet for Hi Bay Wattages | D10: Reference
B11: 6 | C11: System Lumen Comparison Tool | D11: Chart
B12: 7 | C12: Albeo ABV3 Fixture Retrofit | D12: Cost Calculator
B13: 8 | C13: Albeo ABV3 2-Option Comparison | D13: Cost Calculator
B14: 9 | C14: HID-LED Lamp Replacement Chart | D14: Reference
B15: 10 | C15: HID Replacement Lamp Calculator (Hi-watt) | D15: Cost Calculator
B16: 11 | C16: HID Replacement Lamp Calculator (Low-watt) | D16: Cost Calculator
B17: Commercial/Office (Fluorescent)
B18: 12 | C18: Reference Sheet for Tube Wattages (offices) | D18: Reference
B19: 13 | C19: LED Type A Tube Calculator | D19: Cost Calculator
B20: 14 | C20: LED Type B Tube Calculator | D20: Cost Calculator
B21: 15 | C21: LED Type C Tube Calculator | D21: Cost Calculator
B22: 16 | C22: Fluorescent Fixture Lumens Calculator | D22: Light Level Calculator
B23: 17 | C23: Fixture vs Tube Cost of Ownership | D23: Cost Calculator
B24: Supporting Calculators
B25: 17 | C25: Generic Payback Tool | D25: Cost Calculator
B26: 16 | C26: Generic 2-Option Comparison | D26: Cost Calculator
B27: 17 | C27: Multiple Systems Calculator | D27: Cost Calculator
B28: 18 | C28: Lighting System Cost Breakdown | D28: Cost Calculator
B29: 19 | C29: Cost of Ownership Comparison | D29: Cost Calculator
B30: 20 | C30: Simple Lighting Layouts | D30: Lighting Layout Tool
B31: 21 | C31: Energy Rates By State | D31: Reference
B32: 22 | C32: Environmental Impact Calculator | D32: Environmental Impact
B33: 23 | C33: A/C Savings Calculator | D33: HVAC Savings
B34: 24 | C34: IES File Generator for Directional Lamps | D34: Tool
B35: 25 | C35: Rebate Lookup Tool | D35: Link
B36: 26 | C36: Asset Value Increase | D36: Benefit Tool
C37: Full Disclaimer

Sheet Instructions
B2: Below is usage help on the tools included here. It you wish some general help on navigation, etc. please click the link below

Sheet Simple_Payback
B2: Simple LED Payback Calculator | C2: Put your company logo here
A3: Date | B3: Opportunity Analysis prepared for | C3: Your e-mail | D3: Your phone #
B5: Site Name:
B6: # Fixtures | C6: 240 | D6: It is important to check that the proposed fixture provides similar lumens to the existing fixture.
B7: Burn hr. annual | C7: 6500
B8: Energy Rate $ per kWh | C8: 0.11
C9: Proposed | D9: Existing
B10: Lamp/Fixture Description | C10: ABV3 18T | D10: MVR400/U
B11: Fixture Watts | C11: 109 | D11: 460
B12: Investment
B13: Cost of proposed Lamp/Fixture | C13: 240
B14: Labor to install (per fixture) | C14: 50
B15: Rebate, if available (put in as negative $) | C15: -100
B16: Cost to retrofit entire site | C16: =C6*(C13+C14+C15) -> 45600
B17: Savings
B18: Cost of Energy used (annual) EXISTING | C18: =C6*C7*C8*D11/1000 -> 78936
B19: Cost of Energy used (annual) PROPOSED | C19: =C6*C7*C8*C11/1000 -> 18704.4
B20: Energy Saved (annual) | C20: =C18-C19 -> 60231.6
B21: ROI | C21: =C20/C16 -> 1.320868421
B22: Payback (months) | C22: =12*C16/C20 -> 9.084932162
B23: Controls | D23: FALSE
B24: Cost of Adding controls (per fixture) | C24: 50
B25: % energy savings from controls | C25: 0.4 | D25: =IF(D23=FALSE,1,C25) -> 1
B26: New Investment number (with controls) | C26: =IF(D23=FALSE,"",C6*(C13+C14+C15+C24)) -> 
B27: New ROI with controls | C27: =IF(D23=FALSE,"",(C18-C19*C25)/C26) -> 
B28: New Payback with controls (months) | C28: =IF(D23=FALSE,"",12/C27) -> 
B29: Environmental Impact (USA, 2017 numbers)
B30: kWh saved per year | C30: =C6*(C7*D11-C7*C11*D25)/1000 -> 547560
B31: Metric tons CO2 emission reduced per year | C31: =C30*D37 -> 384.93468
B32: lb. coal burning avoided per year | C32: =C31/D38 -> 410816.0939
B33: Metric tons coal burning avoided per year | C33: =C32/2205 -> 186.3111537
B34: Equivalent gallons of gasoline burning avoided | C34: =C31/D39 -> 43299.73903
B35: Equivalent acres of forest added | C35: =C31/D40 -> 363.1459245
B36: DOE Numbers for the US (2017) generating these calculations
B37: CO2 Emission factor (metric tons CO2 per kWh generated) | D37: 0.000703
B38: CO2 released metric tons. per per lb. of coal burned | D38: 0.000937
B39: metric tons CO2 released per gallon of gasoline burned | D39: 0.00889
B40: CO2 sequestration metric ton.per acre of forest per year | D40: 1.06
B41: Link to EPA GHG Equivalencies Calculator (2017)

Sheet Cost_of_Waiting
C2: Cost of Waiting Estimator | F2: Put your company logo here
B4: This tool calculates the typical Cost of Waiting when traditional Fluorescent and HID lamps are not upgraded to LED lamps Assumptions: T8 lamps are 4 foot F32 or F28 on Normal ballast factor. Typicaly, 31% energy savings when converted to Type A LED tubes. 400W HID lamps, Type B LED lamps will take fixture wattage from 460 watts to 150 watts for a 67% energy reduction. Further savings result from maintenance reduction; based on typical numbers for average facilities, 20% for HID and 50% for LED Tubes. LED lamps require no maintenance till end of rated life; Fluorescent and HID lamps have a steady random failure rate.
B9: Typical Cost of Not Upgrading to LED Lamps
B10: Fixture Type | C10: Burn Hours per year | D10: Number of Fixtures | E10: Lamps per fixture | F10: Energy rate $ per kWh | G10: Cost of Waiting per year (typical) | H10: Cost of Waiting per month (typical)
D11: 400 | E11: 1 | F11: 0.1 | G11: =B34*C34*F11*D11*E11/1000 -> 96732.48 | H11: =G11/12 -> 8061.04
B13: This calculation provides a basis for intiating a conversation about upgrading to LED lamps within the existing fixtures while maintaining similar light levels. More accurate estimates can be provided once the specific retrofit option has been identified. In some cases--especially if the site is retrofitted to LED fixtures rather than LED lamps--even larger savings can be realized.
B16: LED Type A Tubes --> | D16: Replace Fluorescent tubes in the same fixture, no ballast change
B17: LED Type B Tubes --> | D17: Replace Fluorescent tubes in the same fixture, remove external ballast
B18: LED Type C Tubes --> | D18: Replace Fluorescent tubes in the same fixture, replace ballast with LED driver
B20: HID to LED lamps Type A --> | D20: Replace HID lamps with LED lamps in the same fixture, no ballast change
B21: HID to LED lamps Type B --> | D21: Replace HID lamps with LED lamps in the same fixture, remove external ballast
B25: Office Fluorescent T8 | C25: 1-Shift 4500 hr.
B26: HID Hi-Bay 400W | C26: 2-Shift 6500 hr.
C27: 24/7 op. 8760 hr.
B33: 2 | C33: 2
B34: =IF(B33=1,11.625,372.048) -> 372.048 | C34: =IF(C33=1,4500,IF(C33=2,6500,8760)) -> 6500

Sheet Procrastination
B2: Cost of Procrastinating
G4: Would you be okay with carrying a
G5: credit card debt of | H5: =F33 -> 88000
G6: and paying steady annual interest
G7: at the rate of | H7: =F34 -> 1.0075
G8: Probably not. But that's what you are choosing to do by not upgrading to LED lighting. Let us explain below, how this is: based on the lamps you are using and the extra money you are paying for energy every month and every year.
K11: 6 | L11: 1 | M11: 3 | N11: =IF(M11=1,4000,IF(M11=2,4500,IF(M11=3,6500,IF(M11=4,8760)))) -> 6500 | P11: W/lamp | R11: $ old | S11: $ new | T11: Savings | U11: Comment | W11: $ per lmp
B12: Also, your procrastinating is causing the unnecessary annual emission of greenhouse gases in the amount of | G12: =N30 -> 1249300 | H12: lbs.
B13: Due to the extra energy consumed by lighting, the utilities have to burn coal every year in the extra amount of | G13: =N31 -> 273.708195 | H13: tons
B14: INPUT | E14: (based on DOE numbers for environmental impact, issued 2017.)
B15: Existing lamp type | F15: Suggested LED upgrade | J15: 1 | K15: Fluorescent 4 ft. T12 | L15: 1 | M15: Office 4000 hr. | N15: 4000 | O15: LED Tube and driver (Type C) | P15: 38 | Q15: 15 | R15: =$D$18*$L$11*P15*$N$11*$D$24/1000 -> 10868 | S15: 4290 | T15: =R15-S15 -> 6578 | U15: 4-foot glass "Lumen Choice" Type C tube can be operated on a driver at around 12 watts to provide equivalent light to a 4 foot T12 system. | V15: Replacing the entire fixture with a brand new 2 X 4 LED fixture is a great solution but will cost a little more than the tube and driver replacement in the existing fixture. | W15: 20
F16: =VLOOKUP(K11,J15:Y22,6) -> LED Lamp Type B, remove ballast | J16: 2 | K16: Fluorescent 4 ft. T8 | L16: 2 | M16: Industrial 1 shift 4500 hr. | N16: 4500 | O16: LED Tube (Type A) retain ballast | P16: 25 | Q16: 17 | R16: 7150 | S16: 4862 | T16: =R16-S16 -> 2288 | U16: Typically, a 4 foot glass 15 W T8 LED Type A tube is a convenient choice and should operate on the existing ballast. The calculations assumes a "N" ballast factor ballast in the fixture. | V16: Type B and Type C solutions are possible and also fixture replacement. | W16: 10
F17: Notes on recommended upgrade | J17: 3 | K17: Fluoresent Hi Lumen Biax | L17: 3 | M17: Industrial 2 shift 6500 hr. | N17: 6500 | O17: LED biax replacement, retain ballast | P17: 38 | Q17: 20 | R17: 10868 | S17: 5720 | T17: 5148 | U17: The calculation assumes an F40/30 High Lumen Biax replaced with an LED plug-in alternative. | V17: Typically these are 2 x 2 fixtures and can be replaced with a neww LED fixture. | W17: 15
B18: Number of fixtures | D18: 400 | F18: =VLOOKUP(K11,J15:U22,12) -> This assumes a Type B 23,500 lumen LED lamp at 150 W replacing the 400 W HID lamp. | J18: 4 | K18: Fluorescent 28W T5 | L18: 4 | M18: Industrial 24/7 shift 8760 hr. | N18: 8760 | O18: LED Tube Type A, retain ballast | P18: 31 | Q18: 16 | R18: 8866 | S18: 4576 | T18: 4290 | U18: A Type A solution available from GE and is being considered here. | V18: Type C systems are also available, as are fixture replacements. | W18: 12
B19: No. of lamps per fixture | J19: 5 | K19: Fluorescent T5HO | L19: 5 | O19: LED tube and driver Type C | P19: 57 | Q19: 29 | R19: 16302 | S19: 8294 | T19: 8008 | U19: GE's LED T5HO Type C tube replacement recommended here has an industry leading 4700 lumens. There are other Type A options available, both from GE and from other companies that only have 3300 to 3600 lumens. These will save even more energy but fail to deliver equivalent light levels. | V19: For High Bay (industrial) applications, GE's Albeo ABV3 fixture will deliver significantly higher energy savings. | W19: 20
J20: 6 | K20: HID 400W | L20: 6 | O20: LED Lamp Type B, remove ballast | P20: 460 | Q20: 150 | R20: 131560 | S20: 42900 | T20: 88660 | U20: This assumes a Type B 23,500 lumen LED lamp at 150 W replacing the 400 W HID lamp. | V20: 18,000 lumen option at 115 watts is also possible. But an Albeo ABV3 fixture at 88 watts is even better. | W20: 220
B21: Approximate burn hr. per year | J21: 7 | K21: HID 250W | O21: LED Lamp Type B, remove ballast | P21: 290 | Q21: 115 | R21: 82940 | S21: 32890 | T21: 50050 | U21: This assumes a Type B 18,000 lumen LED lamp at 115 W replacing the 250W HID lamp. | V21: 12,000 lumen option at 80 watts is also possible. But an Albeo ABV3 fixture at 61 watts is even better. | W21: 270
F22: Alternatives to recommended upgrade | J22: 8 | K22: HID 175W | O22: LED Lamp Type B, remove ballast | P22: 210 | Q22: 90 | R22: 60060 | S22: 25740 | T22: 34320 | U22: This assumes a Type B 12,000 lumen LED lampat 80 W replacing the 175W HID lamp. | V22: 7500 lumen option at 50 watts is also possible. But an Albeo ABV3 fixture at 46 watts is even better. | W22: 140
B24: Energy rate $/kWh | D24: 0.11 | F24: =VLOOKUP(K11,J15:V22,13) -> 18,000 lumen option at 115 watts is also possible. But an Albeo ABV3 fixture at 88 watts is even better.
B26: Estimated energy used currently | E26: =VLOOKUP(K11,J15:T22,9) -> 131560 | M26: kWh saved | N26: =F30/D24 -> 806000
B27: Energy Savings available (annual) | E27: =VLOOKUP(K11,J15:T22,11) -> 88660 | M27: ENVIRONMENTAL
B28: Cost of Postponing the LED Upgrade | M28: lb. CO2 per kWh generated | N28: 1.55
B29: Cost of Waiting (per month) | F29: =E27/12 -> 7388.333333 | G29: And when you add labor and maintenance savings-- and potential rebates available-- the savings and rewards are even higher. | M29: CO2. per lb. of coal burned | N29: 2.07
B30: Cost of Waiting (annual) | F30: =E27 -> 88660 | M30: CO2 emissions saved | N30: =N26*N28 -> 1249300
B31: Estimated cost to retrofit (rough) | F31: =$D$18*$L$11*VLOOKUP(K11,J15:Y22,14) -> 88000 | M31: COAL burning avoided | N31: =N30/(2205*N29) -> 273.708195 | O31: tons
B32: Refusing to do the LED retrofit right now is equivalent to
B33: choosing to carry a credit card debt of | F33: =F31 -> 88000
B34: while continuing to pay an interest rate of | F34: =F30/F33 -> 1.0075
B40: Documentation
B42: 1) | C42: Typical | D42: =VLOOKUP(K11,J15:W22,2) -> HID 400W | G42: lamps on normal ballasts
C43: operate at about | E43: =VLOOKUP(K11,J15:W22,7) -> 460 | F43: watts per lamp, including ballast lossses.
B45: 2) | C45: Typical LED replacement lamps in the same system operate at approximately
C46: =VLOOKUP(K11,J15:W22,8) -> 150 | D46: watts per lamp resulting in roughly | G46: =(E43-C46)/E43 -> 0.6739130435 | H46: energy savings
B48: 3) | C48: Based on DOE 2017 numbers, 1.55 lb. of CO2 are emitted for each kWh of electricity generated.
B51: 4) | C51: Based on DOE 2017 numbers, 1 lb.of coal has burned when 2.07 lb. of CO2 are generated.
B54: 5) | C54: A very rough estimate of retrofit costs is provided assuming | H54: =VLOOKUP(K11,J15:W22,14) -> 220
C55: per lamp replaced. This number may change based on labor rates and lamp costs prevalent in your region. A better estimate can be created through a follow-up by a lighting professional.

Sheet Footcandles_Recom
C1: Typical Footcandles | J1: IMPORTANT NOTE: Lighting Design cannot be based merely on footcandles These numbers provide rough guidelines that are satisfactory in a most cases, but substantial additional information must be considered.
C2: Hor | D2: Vert | G2: Hor | H2: Vert | K2: Hor | L2: Vert
B3: Offices | F3: Industrial | J3: Residential
B4: General, Open offices | C4: 50 | F4: Basic Tasks (coarse) | G4: 10 | J4: General Lighting | K4: 5
B5: Intensive Computer use | C5: 30 | F5: Basic Tasks (medium) | G5: 30 | J5: Grooming | K5: 30
B6: Lobby, Reception | C6: 10 | F6: Basic Tasks (fine) | G6: 50 | J6: Dining | K6: 5
B7: Conference Rooms | C7: 30 | D7: 10 | F7: Basic Tasks (very fine) | G7: 100 | J7: Kitchen Counter | K7: 30
B8: Video Conferencing | C8: 50 | D8: 30 | F8: Machining (rough) | G8: 30 | J8: Serious reading | K8: 50
B9: Shopping Malls/Retail | F9: Machining (fine) | G9: 300+ | J9: Casual Reading | K9: 30
B10: Main Concourse | C10: 30 | F10: Warehousing (inactive) | G10: 5 | J10: Hotels
B11: Restrooms | C11: 10 | F11: Warehousing (large labels) | G11: 10 | H11: 10 | J11: Guest Rooms (general) | K11: 10
B12: General Retail | C12: 50 | F12: Warehousing (small labels) | G12: 30 | H12: 30 | J12: Bathrooms | K12: 30
B13: Supermarkets | C13: 50 | F13: Stairways, corridors | G13: 5 | J13: Reading, Desk surface | K13: 30
B14: Feature Display | C14: 100 | F14: Toilets and Wash rooms | G14: 10 | J14: Corridors, stairs | K14: 5
B15: Show Window | C15: 300 | F15: Shipping/Receiving | G15: 30 | J15: Front Desk | K15: 50
B16: Hospitals | F16: Reception/Lobby | G16: 10 | J16: Lobby | K16: 10
B17: Corridors | C17: 10 | F17: Parking | J17: Restaurants
B18: General (most areas) | C18: 30 | F18: Outdoor Parking | G18: 0.5 to 2 | J18: Intimate Dining | K18: 5
B19: Operating Table | C19: 1000+ | F19: Indoor Parking | G19: 2 to 5 | J19: Food Court/Casual Dining | K19: 30
B20: Inspection of supplies | C20: 100 | F20: Outdoor | J20: Kitchen | K20: 50
B21: Waiting Areas (general) | C21: 10 | F21: Building façade (flood) | H21: 3-10 | J21: Sports
B22: Waiting Areas (reading) | C22: 30 | F22: Roadway | G22: 0.3 to 1 | J22: Baseball (Pro) infield | K22: 150
B23: Nursing Station (general) | C23: 30 | F23: Casinos and Gaming | J23: Baseball (Pro) outfield | K23: 100
B24: Lobby | C24: 5 | F24: Circulation (high activity) | G24: 30 | J24: Baseball (recreational) infield | K24: 30
B25: Medical Records | C25: 50 | D25: 10 | F25: Circulation (medium activity) | G25: 10 | J25: Baseball (recreational) outfield | K25: 20
B26: Schools and Universities | F26: Circulation (low activity) | G26: 5 | J26: Tennis (Pro) | K26: 150
B27: Classrooms | C27: 50 | F27: Baccarat, Bingo, Craps, Roulette | G27: 30 | J27: Tennis (recreational) | K27: 50
B28: Gymnasiums (basketball) | C28: 100 | D28: 30 | F28: Poker, Blackjack | G28: 50 | J28: Basketball (Pro) | K28: 125
B29: Gymnasiums (social events) | C29: 5 | F29: Video and Slots | G29: 10 | J29: Basketball (recreational) | K29: 30
B30: Corridors | D30: 30 | J30: NOTE: This represents what is needed by the players. Spectators and cameras may need more. For example, Major League Baseball calls for 350 fc at Home Plate.
B31: Lecture Demonstraion | C31: 100 | D31: 50

Sheet Hi-Bay_Watts
C2: Hi-Bay Wattages for LED Retrofits Reference Sheet
B5: From | C5: System Watts | E5: To | F5: System Watts
B7: MVR400/U | C7: 460 | D7: ABV3 18T (Std.) | F7: 109
D8: ABV3 18H (Hi Perf.) | E8: ABV3 18H (Hi Perf.) | F8: 88
D9: ABC1 18 (Value) | F9: 126
D10: LED HID Lamp Type A | E10: LED HID Lamp Type A | F10: 165
D11: LED HID Lamp Type B | E11: LED HID Lamp Type B | F11: 18000L =115W
D12: LED HID Lamp Type B | E12: LED HID Lamp Type B | F12: 24,000L = 150W
B13: 6 Lamp T8HL Hi bf | C13: 220 | D13: ABV3 18T (Std.) | E13: ABV3 18T (Std.) | F13: 109
D14: ABV3 18H (Hi Perf.) | E14: ABV3 18H (Hi Perf.) | F14: 88
D15: ABC1 18 (Value) | F15: 126
D16: LED T8 Type A 18W | E16: LED T8 Type A 18W | F16: 174
B17: 4 Lamp T5HO | C17: 234 | D17: ABV3 18T (Std.) | E17: ABV3 18T (Std.) | F17: 109
D18: ABV3 18H (Hi Perf.) | E18: ABV3 18H (Hi Perf.) | F18: 88
D19: ABC1 18 (Value) | F19: 126
D20: LED T5HO Type A | E20: LED T5HO Type A | F20: 128
D21: LED T5HO Type C | E21: LED T5HO Type C | F21: 144
B22: 6 Lamp T5HO | C22: 351 | D22: ABV3 24T (std.) | E22: ABV3 24T (std.) | F22: 137
D23: ABV3 24H (Hi Perf.) | E23: ABV3 24H (Hi Perf.) | F23: 122
D24: ABC1 24 (Value) | F24: 161
D25: LED T5HO Type A | E25: LED T5HO Type A | F25: 192
D26: LED T5HO Type C | E26: LED T5HO Type C | F26: 216
B27: ABV3 / ABC1 Portfolios
B28: Approx. Lumens | C28: ABV3 Watts for different series | F28: ABC1
C29: T (std.) | D29: H (Hi Perf.)
B30: 9000 | C30: 50 | D30: 46 | F30: 9,900L = 62W
B31: 12000 | C31: 68 | D31: 61 | F31: 12,000L = 78W
B32: 15000 | C32: 92
B33: 18000 | C33: 109 | D33: 88 | F33: 18,000L = 126W
B34: 24000 | C34: 137 | D34: 122 | F34: 24,000L = 161W
B35: 30000 | C35: 184
B36: 36000 | C36: 221 | D36: 190
B37: 48000 | C37: 284 | D37: 248
B38: 60000 | C38: 360 | D38: 314

Sheet Lumen_Comparison
E2: Lighting System Lumen Comparison Tool | G2: Put your company logo here
B3: # lamps /fixture | D3: Lamp | E3: Rated Initial Lumens | F3: Mean Lumens (%) | G3: Life (hr.) | H3: Ballast Factor | I3: C U
B4: System 1: | C4: 1 | D4: MVR400/U | E4: 36000 | F4: 0.65 | G4: 20000 | H4: 1 | I4: 0.85 | L4: =E4*H4*C4*I4 -> 30600
B5: System 2: | C5: 6 | D5: T5HO/WM | E5: 5000 | F5: 0.92 | G5: 36000 | H5: 1 | I5: 0.9 | L5: 27000
B6: System 3: | C6: 6 | D6: T8 HL Hi bf | E6: 3100 | F6: 0.94 | G6: 50000 | H6: 1.18 | I6: 0.9 | L6: 19753.2
B7: System 4: | C7: 4 | D7: T5HO/WM | E7: 5000 | F7: 0.92 | G7: 36000 | H7: 1 | I7: 0.9 | L7: 18000
B8: System 5: | C8: 1 | D8: Albeo ABV3 18 | E8: 18000 | F8: 0.85 | G8: 100000 | H8: 1 | I8: 1 | L8: 18000
B9: System 6: | C9: 1 | D9: Albeo ABv3 24 | E9: 24000 | F9: 0.85 | G9: 100000 | H9: 1 | I9: 1 | L9: 24000
B10: System 7: | I10: 1 | L10: 0
B11: System 8: | I11: 1 | L11: 0
C12: Note: Mouseover the cells with red triangle in upper right corner for additional information. To remove a system, type zero in the number of lamps cell
D16: =C4&" "&D4 -> 1 MVR400/U
D17: 6 T5HO/WM
D18: 6 T8 HL Hi bf
D19: 4 T5HO/WM
D20: 1 Albeo ABV3 18
D21: 1 Albeo ABv3 24
C35: 0 | D35: 1000 | E35: 2000 | F35: 3000 | G35: 4000 | H35: 5000 | I35: 6000 | J35: 7000 | K35: 8000 | L35: 9000 | M35: 10000 | N35: 11000 | O35: 12000 | P35: 13000 | Q35: 14000 | R35: 15000 | S35: 16000 | T35: 17000 | U35: 18000 | V35: 19000 | W35: 20000
B36: System1 | C36: 0 | D36: 0.05 | E36: 0.1 | F36: 0.15 | G36: 0.2 | H36: 0.25 | I36: 0.3 | J36: 0.35 | K36: 0.4 | L36: 0.45 | M36: 0.5 | N36: 0.55 | O36: 0.6 | P36: 0.65 | Q36: 0.7 | R36: 0.75 | S36: 0.8 | T36: 0.85 | U36: 0.9 | V36: 0.95 | W36: 1
B37: Lmp1 hr | C37: 0 | D37: =D36*$G$4 -> 1000 | E37: 2000 | F37: 3000 | G37: 4000 | H37: 5000 | I37: 6000 | J37: 7000 | K37: 8000 | L37: 9000 | M37: 10000 | N37: 11000 | O37: 12000 | P37: 13000 | Q37: 14000 | R37: 15000 | S37: 16000 | T37: 17000 | U37: 18000 | V37: 19000 | W37: 20000
B38: Lmp1% Lum | C38: =EXP(-(C36/0.25)*(1-$F$4^0.75))+0.06*(C36^2) -> 1 | D38: 0.946428976 | E38: 0.8960439004 | F38: 0.8486897371 | G38: 0.8042197787 | H38: 0.7624951991 | I38: 0.72338463 | J38: 0.6867637604 | K38: 0.6525149575 | L38: 0.6205269076 | M38: 0.5906942771 | N38: 0.562917391 | O38: 0.5371019289 | P38: 0.5131586374 | Q38: 0.4910030579 | R38: 0.4705552689 | S38: 0.4517396426 | T38: 0.4344846137 | U38: 0.4187224617 | V38: 0.404389104 | W38: 0.3914239007
B39: Lmp1 Lum | C39: =C38*$L$4 -> 30600 | D39: 28960.72666 | E39: 27418.94335 | F39: 25969.90595 | G39: 24609.12523 | H39: 23332.35309 | I39: 22135.56968 | J39: 21014.97107 | K39: 19966.9577 | L39: 18988.12337 | M39: 18075.24488 | N39: 17225.27217 | O39: 16435.31902 | P39: 15702.6543 | Q39: 15024.69357 | R39: 14398.99123 | S39: 13823.23306 | T39: 13295.22918 | U39: 12812.90733 | V39: 12374.30658 | W39: 11977.57136
B41: System2 | C41: 0 | D41: 0.05 | E41: 0.1 | F41: 0.15 | G41: 0.2 | H41: 0.25 | I41: 0.3 | J41: 0.35 | K41: 0.4 | L41: 0.45 | M41: 0.5 | N41: 0.55 | O41: 0.6 | P41: 0.65 | Q41: 0.7 | R41: 0.75 | S41: 0.8 | T41: 0.85 | U41: 0.9 | V41: 0.95 | W41: 1
B42: Lmp2 hr | C42: 0 | D42: =D41*$G$5 -> 1800 | E42: 3600 | F42: 5400 | G42: 7200 | H42: 9000 | I42: 10800 | J42: 12600 | K42: 14400 | L42: 16200 | M42: 18000 | N42: 19800 | O42: 21600 | P42: 23400 | Q42: 25200 | R42: 27000 | S42: 28800 | T42: 30600 | U42: 32400 | V42: 34200 | W42: 36000
B43: Lmp2% Lum | C43: =EXP(-(C41/0.25)*(1-$F$5^0.75))+0.06*(C41^2) -> 1 | D43: 0.9880990119 | E43: 0.9766432502 | F43: 0.9656309646 | G43: 0.9550604262 | H43: 0.9449299268 | I43: 0.9352377787 | J43: 0.9259823147 | K43: 0.9171618877 | L43: 0.9087748702 | M43: 0.9008196546 | N43: 0.8932946525 | O43: 0.8861982947 | P43: 0.879529031 | Q43: 0.8732853297 | R43: 0.8674656776 | S43: 0.8620685799 | T43: 0.8570925597 | U43: 0.8525361578 | V43: 0.8483979328 | W43: 0.8446764604
B44: Lmp2 Lum | C44: =C43*$L$5 -> 27000 | D44: 26678.67332 | E44: 26369.36775 | F44: 26072.03604 | G44: 25786.63151 | H44: 25513.10802 | I44: 25251.42003 | J44: 25001.5225 | K44: 24763.37097 | L44: 24536.92149 | M44: 24322.13067 | N44: 24118.95562 | O44: 23927.35396 | P44: 23747.28384 | Q44: 23578.7039 | R44: 23421.5733 | S44: 23275.85166 | T44: 23141.49911 | U44: 23018.47626 | V44: 22906.74419 | W44: 22806.26443
B46: System3 | C46: 0 | D46: 0.05 | E46: 0.1 | F46: 0.15 | G46: 0.2 | H46: 0.25 | I46: 0.3 | J46: 0.35 | K46: 0.4 | L46: 0.45 | M46: 0.5 | N46: 0.55 | O46: 0.6 | P46: 0.65 | Q46: 0.7 | R46: 0.75 | S46: 0.8 | T46: 0.85 | U46: 0.9 | V46: 0.95 | W46: 1
B47: Lmp3 hr | C47: 0 | D47: =D46*$G$6 -> 2500 | E47: 5000 | F47: 7500 | G47: 10000 | H47: 12500 | I47: 15000 | J47: 17500 | K47: 20000 | L47: 22500 | M47: 25000 | N47: 27500 | O47: 30000 | P47: 32500 | Q47: 35000 | R47: 37500 | S47: 40000 | T47: 42500 | U47: 45000 | V47: 47500 | W47: 50000
B48: Lmp3% Lum | C48: =EXP(-(C46/0.25)*(1-$F$6^0.75))+0.06*(C46^2) -> 1 | D48: =EXP(-(D46/0.25)*(1-$F$6^0.75))+0.06*(D46^2) -> 0.9911217548 | E48: 0.9826250188 | F48: 0.9745090562 | G48: 0.9667731376 | H48: 0.9594165404 | I48: 0.9524385486 | J48: 0.9458384523 | K48: 0.9396155485 | L48: 0.9337691401 | M48: 0.9282985365 | N48: 0.9232030534 | O48: 0.9184820125 | P48: 0.9141347418 | Q48: 0.9101605752 | R48: 0.9065588527 | S48: 0.9033289204 | T48: 0.90047013 | U48: 0.8979818393 | V48: 0.8958634118 | W48: 0.8941142167
B49: Lmp3 Lum | C49: =C48*$L$6 -> 19753.2 | D49: 19577.82625 | E49: 19409.98852 | F49: 19249.67229 | G49: 19096.86314 | H49: 18951.54681 | I49: 18813.70914 | J49: 18683.33612 | K49: 18560.41385 | L49: 18444.92858 | M49: 18336.86665 | N49: 18236.21455 | O49: 18142.95889 | P49: 18057.08638 | Q49: 17978.58387 | R49: 17907.43833 | S49: 17843.63683 | T49: 17787.16657 | U49: 17738.01487 | V49: 17696.16915 | W49: 17661.61695
B51: System4 | C51: 0 | D51: 0.05 | E51: 0.1 | F51: 0.15 | G51: 0.2 | H51: 0.25 | I51: 0.3 | J51: 0.35 | K51: 0.4 | L51: 0.45 | M51: 0.5 | N51: 0.55 | O51: 0.6 | P51: 0.65 | Q51: 0.7 | R51: 0.75 | S51: 0.8 | T51: 0.85 | U51: 0.9 | V51: 0.95 | W51: 1
B52: Lmp4 hr | C52: 0 | D52: =D51*$G$7 -> 1800 | E52: 3600 | F52: 5400 | G52: 7200 | H52: 9000 | I52: 10800 | J52: 12600 | K52: 14400 | L52: 16200 | M52: 18000 | N52: 19800 | O52: 21600 | P52: 23400 | Q52: 25200 | R52: 27000 | S52: 28800 | T52: 30600 | U52: 32400 | V52: 34200 | W52: 36000
B53: Lmp4% Lum | C53: =EXP(-(C51/0.25)*(1-$F$7^0.75))+0.06*(C51^2) -> 1 | D53: =EXP(-(D51/0.25)*(1-$F$7^0.75))+0.06*(D51^2) -> 0.9880990119 | E53: 0.9766432502 | F53: 0.9656309646 | G53: 0.9550604262 | H53: 0.9449299268 | I53: 0.9352377787 | J53: 0.9259823147 | K53: 0.9171618877 | L53: 0.9087748702 | M53: 0.9008196546 | N53: 0.8932946525 | O53: 0.8861982947 | P53: 0.879529031 | Q53: 0.8732853297 | R53: 0.8674656776 | S53: 0.8620685799 | T53: 0.8570925597 | U53: 0.8525361578 | V53: 0.8483979328 | W53: 0.8446764604
B54: Lmp4 Lum | C54: =C53*$L$7 -> 18000 | D54: 17785.78221 | E54: 17579.5785 | F54: 17381.35736 | G54: 17191.08767 | H54: 17008.73868 | I54: 16834.28002 | J54: 16667.68167 | K54: 16508.91398 | L54: 16357.94766 | M54: 16214.75378 | N54: 16079.30374 | O54: 15951.5693 | P54: 15831.52256 | Q54: 15719.13593 | R54: 15614.3822 | S54: 15517.23444 | T54: 15427.66607 | U54: 15345.65084 | V54: 15271.16279 | W54: 15204.17629
B56: System5 | C56: 0 | D56: 0.05 | E56: 0.1 | F56: 0.15 | G56: 0.2 | H56: 0.25 | I56: 0.3 | J56: 0.35 | K56: 0.4 | L56: 0.45 | M56: 0.5 | N56: 0.55 | O56: 0.6 | P56: 0.65 | Q56: 0.7 | R56: 0.75 | S56: 0.8 | T56: 0.85 | U56: 0.9 | V56: 0.95 | W56: 1
B57: Lmp5 hr | C57: 0 | D57: =D56*$G$8 -> 5000 | E57: =E56*$G$8 -> 10000 | F57: 15000 | G57: 20000 | H57: 25000 | I57: 30000 | J57: 35000 | K57: 40000 | L57: 45000 | M57: 50000 | N57: 55000 | O57: 60000 | P57: 65000 | Q57: 70000 | R57: 75000 | S57: 80000 | T57: 85000 | U57: 90000 | V57: 95000 | W57: 100000
B58: Lmp5% Lum | C58: =EXP(-(C56/0.25)*(1-$F$8^0.75))+0.06*(C56^2) -> 1 | D58: =EXP(-(D56/0.25)*(1-$F$8^0.75))+0.06*(D56^2) -> 0.9774606544 | E58: =EXP(-(E56/0.25)*(1-$F$8^0.75))+0.06*(E56^2) -> 0.9557361152 | F58: 0.9348147018 | G58: 0.9146849986 | H58: 0.895335849 | I58: 0.8767563495 | J58: 0.8589358442 | K58: 0.8418639187 | L58: 0.825530395 | M58: 0.8099253261 | N58: 0.7950389907 | O58: 0.7808618879 | P58: 0.7673847325 | Q58: 0.75459845 | R58: 0.7424941718 | S58: 0.7310632303 | T58: 0.7202971549 | U58: 0.710187667 | V58: 0.7007266757 | W58: 0.6919062741
B59: Lmp5 Lum | C59: =C58*$L$8 -> 18000 | D59: =D58*$L$8 -> 17594.29178 | E59: =E58*$L$8 -> 17203.25007 | F59: 16826.66463 | G59: 16464.32997 | H59: 16116.04528 | I59: 15781.61429 | J59: 15460.8452 | K59: 15153.55054 | L59: 14859.54711 | M59: 14578.65587 | N59: 14310.70183 | O59: 14055.51398 | P59: 13812.92519 | Q59: 13582.7721 | R59: 13364.89509 | S59: 13159.13815 | T59: 12965.34879 | U59: 12783.37801 | V59: 12613.08016 | W59: 12454.31293
B61: System6 | C61: 0 | D61: 0.05 | E61: 0.1 | F61: 0.15 | G61: 0.2 | H61: 0.25 | I61: 0.3 | J61: 0.35 | K61: 0.4 | L61: 0.45 | M61: 0.5 | N61: 0.55 | O61: 0.6 | P61: 0.65 | Q61: 0.7 | R61: 0.75 | S61: 0.8 | T61: 0.85 | U61: 0.9 | V61: 0.95 | W61: 1
B62: Lmp6 hr | C62: 0 | D62: =D61*$G$9 -> 5000 | E62: =E61*$G$9 -> 10000 | F62: 15000 | G62: 20000 | H62: 25000 | I62: 30000 | J62: 35000 | K62: 40000 | L62: 45000 | M62: 50000 | N62: 55000 | O62: 60000 | P62: 65000 | Q62: 70000 | R62: 75000 | S62: 80000 | T62: 85000 | U62: 90000 | V62: 95000 | W62: 100000
B63: Lmp6% Lum | C63: =EXP(-(C61/0.25)*(1-$F$9^0.75))+0.06*(C61^2) -> 1 | D63: =EXP(-(D61/0.25)*(1-$F$9^0.75))+0.06*(D61^2) -> 0.9774606544 | E63: 0.9557361152 | F63: 0.9348147018 | G63: 0.9146849986 | H63: 0.895335849 | I63: 0.8767563495 | J63: 0.8589358442 | K63: 0.8418639187 | L63: 0.825530395 | M63: 0.8099253261 | N63: 0.7950389907 | O63: 0.7808618879 | P63: 0.7673847325 | Q63: 0.75459845 | R63: 0.7424941718 | S63: 0.7310632303 | T63: 0.7202971549 | U63: 0.710187667 | V63: 0.7007266757 | W63: 0.6919062741
B64: Lmp6 Lum | C64: =C63*$L$9 -> 24000 | D64: =D63*$L$9 -> 23459.05571 | E64: 22937.66677 | F64: 22435.55284 | G64: 21952.43997 | H64: 21488.06038 | I64: 21042.15239 | J64: 20614.46026 | K64: 20204.73405 | L64: 19812.72948 | M64: 19438.20783 | N64: 19080.93578 | O64: 18740.68531 | P64: 18417.23358 | Q64: 18110.3628 | R64: 17819.86012 | S64: 17545.51753 | T64: 17287.13172 | U64: 17044.50401 | V64: 16817.44022 | W64: 16605.75058
B66: System7 | C66: 0 | D66: 0.05 | E66: 0.1 | F66: 0.15 | G66: 0.2 | H66: 0.25 | I66: 0.3 | J66: 0.35 | K66: 0.4 | L66: 0.45 | M66: 0.5 | N66: 0.55 | O66: 0.6 | P66: 0.65 | Q66: 0.7 | R66: 0.75 | S66: 0.8 | T66: 0.85 | U66: 0.9 | V66: 0.95 | W66: 1
B67: Lmp7 hr | C67: 0 | D67: =D66*$G$10 -> 0 | E67: =E66*$G$10 -> 0 | F67: 0 | G67: 0 | H67: 0 | I67: 0 | J67: 0 | K67: 0 | L67: 0 | M67: 0 | N67: 0 | O67: 0 | P67: 0 | Q67: 0 | R67: 0 | S67: 0 | T67: 0 | U67: 0 | V67: 0 | W67: 0
B68: Lmp7% Lum | C68: =EXP(-(C66/0.25)*(1-$F$10^0.75))+0.06*(C66^2) -> 1 | D68: =EXP(-(D66/0.25)*(1-$F$10^0.75))+0.06*(D66^2) -> 0.8188807531 | E68: 0.670920046 | F68: 0.5501616361 | G68: 0.4517289641 | H68: 0.3716294412 | I68: 0.3065942119 | J68: 0.2539469639 | K68: 0.211496518 | L68: 0.1774488882 | M68: 0.1503352832 | N68: 0.1289531584 | O68: 0.1123179533 | P68: 0.09962357821 | Q68: 0.09021006263 | R68: 0.08353706837 | S68: 0.07916220398 | T68: 0.07672326996 | U68: 0.07592372245 | V68: 0.07652077186 | W68: 0.07831563889
B69: Lmp7 Lum | C69: =C68*$L$10 -> 0 | D69: =D68*$L$10 -> 0 | E69: 0 | F69: 0 | G69: 0 | H69: 0 | I69: 0 | J69: 0 | K69: 0 | L69: 0 | M69: 0 | N69: 0 | O69: 0 | P69: 0 | Q69: 0 | R69: 0 | S69: 0 | T69: 0 | U69: 0 | V69: 0 | W69: 0
B71: System8 | C71: 0 | D71: 0.05 | E71: 0.1 | F71: 0.15 | G71: 0.2 | H71: 0.25 | I71: 0.3 | J71: 0.35 | K71: 0.4 | L71: 0.45 | M71: 0.5 | N71: 0.55 | O71: 0.6 | P71: 0.65 | Q71: 0.7 | R71: 0.75 | S71: 0.8 | T71: 0.85 | U71: 0.9 | V71: 0.95 | W71: 1
B72: Lmp8 hr | C72: 0 | D72: =D71*$G$11 -> 0 | E72: =E71*$G$11 -> 0 | F72: 0 | G72: 0 | H72: 0 | I72: 0 | J72: 0 | K72: 0 | L72: 0 | M72: 0 | N72: 0 | O72: 0 | P72: 0 | Q72: 0 | R72: 0 | S72: 0 | T72: 0 | U72: 0 | V72: 0 | W72: 0
B73: Lmp8% Lum | C73: =EXP(-(C71/0.25)*(1-$F$11^0.75))+0.06*(C71^2) -> 1 | D73: =EXP(-(D71/0.25)*(1-$F$11^0.75))+0.06*(D71^2) -> 0.8188807531 | E73: 0.670920046 | F73: 0.5501616361 | G73: 0.4517289641 | H73: 0.3716294412 | I73: 0.3065942119 | J73: 0.2539469639 | K73: 0.211496518 | L73: 0.1774488882 | M73: 0.1503352832 | N73: 0.1289531584 | O73: 0.1123179533 | P73: 0.09962357821 | Q73: 0.09021006263 | R73: 0.08353706837 | S73: 0.07916220398 | T73: 0.07672326996 | U73: 0.07592372245 | V73: 0.07652077186 | W73: 0.07831563889
B74: Lmp8 Lum | C74: =C73*$L$11 -> 0 | D74: =D73*$L$11 -> 0 | E74: 0 | F74: 0 | G74: 0 | H74: 0 | I74: 0 | J74: 0 | K74: 0 | L74: 0 | M74: 0 | N74: 0 | O74: 0 | P74: 0 | Q74: 0 | R74: 0 | S74: 0 | T74: 0 | U74: 0 | V74: 0 | W74: 0

Sheet ABV3_Hi-bay_Retrofit
C1: LED Payback Calculator | F1: Put your company logo here
F2: INSTRUCTIONS: (PLEASE READ!) First select the lamp/fixture currently used. This will automatically populate all the BLUE cells with value for the recommended Albeo fixture. Then, Enter information in GREEN cells only; other cells are calculated values; do not write in them. Maintenance savings are projected assuming existing system has reached long-term (steady state.) If you need to change any of the blue cells, DO NOT WRITE IN THEM because it will destroy the formulas there and make this spread sheet unusable. Instead, go to the "Generic Tool" which allows you to put in custom values.
C3: Select the lamp/fixture currently used in the space | F3: Opportunity Analysis prepared for SIMCO Industries | G3: Date
C4: Manufacturing Area | F4: Your e-mail | G4: Your phone #
C5: Existing Lamp/Fixture Description | D5: =VLOOKUP(N6,O6:V11,2,FALSE) -> MVR400/U | F5: Addition of Controls
C6: # Fixtures | D6: 240 | F6: Effect of Occupacy Sensor Controls | N6: 4 | O6: 1 | P6: 6 lamp T5HO | Q6: 351 | R6: ABV3-24T | S6: 137 | T6: 36000 | U6: 6 | V6: 60000
C7: Fixture Watts, Existing | D7: =VLOOKUP(N6,O6:S11,3,FALSE) -> 460 | F7: Effect of Dimming Controls | O7: 2 | P7: 4-lamp T5HO | Q7: 234 | R7: ABV3 18T | S7: 109 | T7: 36000 | U7: 4 | V7: 60000
C8: Burn hr. annual | D8: 6500 | F8: Cost of adding controls ($ per fixture) | G8: 32 | J8: Year | K8: $ | O8: 3 | P8: 6 lamp T8HL Hi bf | Q8: 220 | R8: ABV3-18T | S8: 109 | T8: 30000 | U8: 6 | V8: 60000
C9: Energy Rate $ per kWh | D9: 0.1 | F9: If Occ. sensors, burn hours reduced to (%) | G9: 0.7 | J9: 0 | K9: =-D26 -> -69600 | O9: 4 | P9: MVR400/U | Q9: 460 | R9: ABV3 18T | S9: 109 | T9: 20000 | U9: 1 | V9: 80000
C10: Annual Energy Use (Existing) | D10: =D6*D7*D8*D9/1000 -> 71760 | F10: If dimming, effective wattage reduced to (%) | G10: 0.6 | J10: 1 | K10: =IF(K9+$D$21>$D$34,0,(K9+$D$21)) -> -14844 | O10: 5 | P10: MVR250/U | Q10: 290 | R10: ABV3-12T | S10: 68 | T10: 10000 | U10: 1 | V10: 80000
C11: Proposed Fixture Description | D11: =VLOOKUP(N6,O6:V11,4,FALSE) -> ABV3 18T | F11: Energy Consumption reduced to (% of full) | G11: =G9*G10 -> 0.42 | J11: 2 | K11: =IF(K10=$D$34,0,IF(K10=0,0,IF(K10+$D$21<$D$34,K10+$D$21,$D$34))) -> 39912 | O11: 6 | P11: MVR175/U | Q11: 210 | R11: ABV3-09T | S11: 50 | T11: 10000 | U11: 1 | V11: 80000
C12: Part Number (if you wish to specify) | F12: Maintenance Savings Calculation | J12: 3 | K12: 94668
C13: LED Fixture Rated Life (hr.) | D13: 100000 | F13: Maintenance Savings | J13: 4 | K13: 149424
C14: LED Fixture Rated Life (years) | D14: =D13/D17 -> 15.38461538 | F14: Existing Lamp/Fixture Description | G14: =D5 -> MVR400/U | J14: 5 | K14: 204180
C15: LED Fixture Watts | D15: =VLOOKUP(N6,O6:V11,5,FALSE) -> 109 | F15: # Fixtures | G15: =D6 -> 240 | J15: 6 | K15: 258936
C16: Effective Wattage with Controls | D16: =IF(E32=TRUE,D15*G10, D15) -> 109 | F16: # lamps per fixture | G16: =VLOOKUP(N6,O6:V11,7,FALSE) -> 1 | J16: 7 | K16: 313692
C17: Annual Burn hr. (including controls) | D17: =IF(E31=TRUE,D8*G9, D8) -> 6500 | F17: # ballasts per fixture (please correct if not 1) | G17: 1 | J17: 8 | K17: 368448
C18: Annual Energy Use (for proposed) | D18: =D6*D16*D17*D9/1000 -> 17004 | F18: Annual Burn hr. | G18: =D8 -> 6500 | J18: 9 | K18: 423204
C19: Energy Savings | D19: =D10-D18 -> 54756 | F19: Lamp Life (best guess) | G19: =VLOOKUP(N6,O6:V11,6,FALSE) -> 20000 | J19: 10 | K19: 477960
C20: Maintenance Savings (estimated) | D20: =IF(E21=2,0,G30) -> 0 | F20: Ballast Life (best guess) | G20: =VLOOKUP(N6,O6:V11,8,FALSE) -> 80000
C21: Total Annual Savings | D21: =D19+D20 -> 54756 | E21: 2 | F21: Cost per lamp | G21: 25
C22: Cost of Proposed Fixture | D22: 340 | F22: Cost per ballast | G22: 65
C23: Labor to Install per fixture | D23: 50 | F23: Labor to replace one lamp | G23: 25
C24: Additional Cost of controls (per fixture) | D24: =IF(E31=TRUE, G8,(IF(E32=TRUE,G8,0))) -> 0 | F24: Labor to replace one ballast | G24: 50
C25: Rebate per fixture (put in brackets) | D25: -100 | F25: Disposal Cost per lamp | G25: 0
C26: Total Investment Required | D26: =D6*(D22+D23+D24+D25) -> 69600 | F26: Disposal Cost per ballast | G26: 0
C27: Summary of Benefits | F27: Disruption cost per event (lamp/ballast out) | G27: 50
C28: Investment per fixture to upgrade | D28: =SUM(D22:D25) -> 290 | F28: Annual Maintenance cost of lamps | G28: =(G18/G19)*G15*G16*(G21+G23+G25+G27) -> 7800
C29: Annual savings per fixture | D29: =D21/D6 -> 228.15 | F29: Annual Maintenance cost of ballasts | G29: =(G18/G20)*G15*G17*(G22+G24+G26+G27) -> 3217.5
C30: Net Energy Savings per fixture over life | D30: =D19*D14/D6 -> 3510 | F30: TOTAL Annual Maintenance Cost (est.) | G30: =G28+G29 -> 11017.5
C31: Net cash generated by each fixture over life | D31: =D29*D14-D28 -> 3220 | E31: FALSE | F31: Environmental Impact (USA, 2017 numbers)
C32: Simple ROI | D32: =D21/D26 -> 0.7867241379 | E32: FALSE | F32: kWh saved per year | G32: =D6*(D7*D8-D16*D17)/1000 -> 547560
C33: Payback (months) | D33: =12*D26/D21 -> 15.25312295 | F33: Metric tons CO2 emission reduced per year | G33: =G32*G39 -> 384.93468
C34: Net Positive Cash by end of fixture life | D34: =D21*D14-D26 -> 772800 | F34: lb. coal burning avoided per year | G34: =G33/G40 -> 410816.0939
C35: Cost of Waiting (doing nothing) | F35: Metric tons coal burning avoided per year | G35: =G34/2205 -> 186.3111537
C36: Cost of waiting per year | D36: =D21 -> 54756 | F36: Equivalent gallons of gasoline burning avoided | G36: =G33/G41 -> 43299.73903
C37: Cost of waiting each month | D37: =D36/12 -> 4563 | F37: Equivalent acres of forest added | G37: =G33/G42 -> 363.1459245
C38: Cost of waiting = energy/maintenance spending that could be avoided by upgrading | F38: DOE Numbers for the US (2017) generating these calculations
C39: Net Present Value (NPV) Calculation | F39: CO2 Emission factor (metric tons CO2 per kWh generated) | G39: 0.000703
C40: Discount rate for NPV calculation | D40: 0.05 | F40: CO2 released metric tons. per per lb. of coal burned | G40: 0.000937
C41: Net Present Value of Project (NPV) 5 years | D41: =NPV(D40,D21,D21,D21,D21,D21)-D26 -> 167464.8246 | F41: metric tons CO2 released per gallon of gasoline burned | G41: 0.00889
C42: Net Present Value of Project (NPV) 10 years | D42: =NPV(D40,D21,D21,D21,D21,D21,D21,D21,D21,D21,D21)-D26 -> 353211.3178 | F42: CO2 sequestration metric ton.per acre of forest per year | G42: 1.06
C43: NPV calculation assumes steady stream of savings over period. In practice, end-user may replace the fixture earlier due to lumen depreciation and incur an additional cost. | F43: Link to EPA GHG Equivalencies Calculator (2017)

Sheet ABV3_Hi-bay_Retrofit_(2-Option)
C1: LED Payback Calculator | G1: Put your company logo here
E2: Click Here to go to Albeo ABV3 Web page | G2: INSTRUCTIONS: (PLEASE READ!) First select the lamp/fixture currently used. This will automatically populate all the BLUE cells with value for the recommended ABV3 fixture. Then, Enter information in GREEN cells only; other cells are calculated values and these cells are protected. If you need to change any of the blue cells, go to the "Generic 2-fixture Tool" which allows you to put in custom values. Maintenance savings are projected assuming the existing legacy system has reached long-term steady state and that lamps and ballasts are replaced as soon as they fail.
E3: Click Here to go to Albeo ABV3 Spec Sheet
C4: Select the lamp/fixture currently used in the space | G4: Opportunity Analysis prepared for SIMCO Industries | H4: Date
C5: Manufacturing Area | G5: Your e-mail | H5: Your phone #
C6: Existing Lamp/Fixture Description | D6: =VLOOKUP(O7,P7:W12,2,FALSE) -> 6 lamp T5HO | G6: Addition of Controls
C7: # Fixtures | D7: 240 | G7: Effect of Occupacy Sensor Controls | O7: 1 | P7: 1 | Q7: 6 lamp T5HO | R7: 351 | S7: ABV3-24T | T7: 137 | U7: 36000 | V7: 6 | W7: 60000 | X7: ABV3-24H | Y7: 122
C8: Fixture Watts, Existing | D8: =VLOOKUP(O7,P7:T12,3,FALSE) -> 351 | G8: Effect of Dimming Controls | L8: T | M8: H | P8: 2 | Q8: 4-lamp T5HO | R8: 234 | S8: ABV3 18T | T8: 109 | U8: 36000 | V8: 4 | W8: 60000 | X8: ABV3 18H | Y8: 88
C9: Burn hr. annual | D9: 6500 | G9: Cost of adding controls ($ per fixture) | H9: 32 | K9: Year | L9: $ | P9: 3 | Q9: 6 lamp T8HL Hi bf | R9: 220 | S9: ABV3-18T | T9: 109 | U9: 30000 | V9: 6 | W9: 60000 | X9: ABV3 18H | Y9: 88
C10: Energy Rate $ per kWh | D10: 0.11 | G10: If Occ. sensors, burn hours reduced to (%) | H10: 0.7 | K10: 0 | L10: =-D28 -> -36000 | M10: =-E28 -> -45600 | P10: 4 | Q10: MVR400/U | R10: 460 | S10: ABV3 18T | T10: 109 | U10: 20000 | V10: 1 | W10: 80000 | X10: ABV3 18H | Y10: 88
C11: Annual Energy Use (Existing) | D11: =D7*D8*D9*D10/1000 -> 60231.6 | G11: If dimming, effective wattage reduced to (%) | H11: 0.6 | K11: 1 | L11: =IF(L10+$D$23>$D$36,0,(L10+$D$23)) -> 722.4 | M11: =IF(M10+$E$23>$E$36,0,(M10+$E$23)) -> -6303.6 | P11: 5 | Q11: MVR250/U | R11: 290 | S11: ABV3-12T | T11: 68 | U11: 10000 | V11: 1 | W11: 80000 | X11: ABV3-12H | Y11: 61
C12: Proposed Fixture Description | D12: Standard "T" | E12: Hi Performance "H" | G12: Energy Consumption reduced to (% of full) | H12: =H10*H11 -> 0.42 | K12: 2 | L12: =IF(L11=$D$36,0,IF(L11=0,0,IF(L11+$D$23<$D$36,L11+$D$23,$D$36))) -> 37444.8 | M12: =IF(M11+$E$23>$E$36,0,(M11+$E$23)) -> 32992.8 | P12: 6 | Q12: MVR175/U | R12: 210 | S12: ABV3-09T | T12: 50 | U12: 10000 | V12: 1 | W12: 80000 | X12: ABV3-09H | Y12: 46
D13: =VLOOKUP(O7,P7:W12,4,FALSE) -> ABV3-24T | E13: =VLOOKUP(O7,P7:Z12,9,FALSE) -> ABV3-24H | G13: Maintenance Savings Calculation | K13: 3 | L13: 74167.2 | M13: 72289.2
C14: Part Number (if you wish to specify) | G14: Maintenance Savings | K14: 4 | L14: 110889.6 | M14: 111585.6
C15: LED Fixture Rated Life (hr.) | D15: 100000 | G15: Existing Lamp/Fixture Description | H15: =D6 -> 6 lamp T5HO | K15: 5 | L15: 147612 | M15: 150882
C16: LED Fixture Rated Life (years) | D16: =D15/D19 -> 15.38461538 | G16: # Fixtures | H16: =D7 -> 240 | K16: 6 | L16: 184334.4 | M16: 190178.4
C17: LED Fixture Watts | D17: =VLOOKUP(O7,P7:W12,5,FALSE) -> 137 | E17: =VLOOKUP(O7,P7:Z12,10,FALSE) -> 122 | G17: # lamps per fixture | H17: =VLOOKUP(O7,P7:W12,7,FALSE) -> 6 | K17: 7 | L17: 221056.8 | M17: 229474.8
C18: Effective Wattage with Controls | D18: =IF(F33=TRUE,D17*H11, D17) -> 137 | E18: =IF(F33=TRUE,E17*H11, E17) -> 122 | G18: # ballasts per fixture (please correct if not 1) | H18: 1 | K18: 8 | L18: 257779.2 | M18: 268771.2
C19: Annual Burn hr. (including controls) | D19: =IF(F32=TRUE,D9*H10, D9) -> 6500 | G19: Annual Burn hr. | H19: =D9 -> 6500 | K19: 9 | L19: 294501.6 | M19: 308067.6
C20: Annual Energy Use (for proposed) | D20: =D7*D18*D19*D10/1000 -> 23509.2 | E20: =D7*E18*D19*D10/1000 -> 20935.2 | G20: Lamp Life (best guess) | H20: =VLOOKUP(O7,P7:W12,6,FALSE) -> 36000 | K20: 10 | L20: 331224 | M20: 347364
C21: Energy Savings | D21: =D11-D20 -> 36722.4 | E21: =D11-E20 -> 39296.4 | G21: Ballast Life (best guess) | H21: =VLOOKUP(O7,P7:W12,8,FALSE) -> 60000
C22: Maintenance Savings (estimated) | D22: =IF(F22=2,0,H31) -> 0 | F22: 2 | G22: Cost per lamp | H22: 25
C23: Total Annual Savings | D23: =D21+D22 -> 36722.4 | E23: =E21+D22 -> 39296.4 | G23: Cost per ballast | H23: 65
C24: Cost of Proposed Fixture | D24: 200 | E24: 240 | G24: Labor to replace one lamp | H24: 25
C25: Labor to Install per fixture | D25: 50 | E25: 50 | G25: Labor to replace one ballast | H25: 50
C26: Additional Cost of controls (per fixture) | D26: =IF(F32=TRUE, H9,(IF(F33=TRUE,H9,0))) -> 0 | G26: Disposal Cost per lamp | H26: 0
C27: Rebate per fixture (put in brackets) | D27: -100 | E27: -100 | G27: Disposal Cost per ballast | H27: 0
C28: Total Investment Required | D28: =D7*(D24+D25+D26+D27) -> 36000 | E28: =D7*(E24+E25+E26+E27) -> 45600 | G28: Disruption cost per event (lamp/ballast out) | H28: 50
C29: Summary of Benefits | G29: Annual Maintenance cost of lamps | H29: =(H19/H20)*H16*H17*(H22+H24+H26+H28) -> 26000
C30: Investment per fixture to upgrade | D30: =SUM(D24:D27) -> 150 | E30: =SUM(E24:E27) -> 190 | G30: Annual Maintenance cost of ballasts | H30: =(H19/H21)*H16*H18*(H23+H25+H27+H28) -> 4290
C31: Annual savings per fixture | D31: =D23/D7 -> 153.01 | E31: =E23/D7 -> 163.735 | G31: TOTAL Annual Maintenance Cost (est.) | H31: =H29+H30 -> 30290
C32: Net Energy Savings per fixture over life | D32: =D21*D16/D7 -> 2354 | E32: =E21*D16/D7 -> 2519 | F32: FALSE | G32: Environmental Impact (USA, 2017 numbers)
C33: Net cash generated by each fixture over life | D33: =D31*D16-D30 -> 2204 | E33: =E31*D16-E30 -> 2329 | F33: FALSE | G33: kWh saved per year Std. "T" fixture | H33: =D7*(D8*D9-D18*D19)/1000 -> 333840
C34: Simple ROI | D34: =D23/D28 -> 1.020066667 | E34: =E23/E28 -> 0.8617631579 | G34: Metric tons CO2 emission reduced per year | H34: =H33*H40 -> 234.68952
C35: Payback (months) | D35: =12*D28/D23 -> 11.763937 | E35: =12*E28/E23 -> 13.92493969 | G35: lb. coal burning avoided per year | H35: =H34/H41 -> 250469.0715
C36: Net Positive Cash by end of fixture life | D36: =D23*D16-D28 -> 528960 | E36: =E23*D16-E28 -> 558960 | G36: Metric tons coal burning avoided per year | H36: =H35/2205 -> 113.5914156
C37: Cost of Waiting (doing nothing) | G37: Equivalent gallons of gasoline burning avoided | H37: =H34/H42 -> 26399.27109
C38: Cost of waiting per year | D38: =D23 -> 36722.4 | E38: =E23 -> 39296.4 | G38: Equivalent acres of forest added | H38: =H34/H43 -> 221.4052075
C39: Cost of waiting each month | D39: =D38/12 -> 3060.2 | E39: =E38/12 -> 3274.7 | G39: DOE Numbers for the US (2017) generating these calculations
C40: Cost of waiting = energy/maintenance spending that could be avoided by upgrading | G40: CO2 Emission factor (metric tons CO2 per kWh generated) | H40: 0.000703
C41: Net Present Value (NPV) Calculation | G41: CO2 released metric tons. per per lb. of coal burned | H41: 0.000937
C42: Discount rate for NPV calculation | D42: 0.05 | G42: metric tons CO2 released per gallon of gasoline burned | H42: 0.00889
C43: Net Present Value of Project (NPV) 5 years | D43: =NPV(D42,D23,D23,D23,D23,D23)-D28 -> 122988.7741 | E43: =NPV(D42,E23,E23,E23,E23,E23)-E28 -> 124532.847 | G43: CO2 sequestration metric ton.per acre of forest per year | H43: 1.06
C44: Net Present Value of Project (NPV) 10 years | D44: =NPV(D42,D23,D23,D23,D23,D23,D23,D23,D23,D23,D23)-D28 -> 247560.6388 | E44: =NPV(D42,E23,E23,E23,E23,E23,E23,E23,E23,E23,E23)-E28 -> 257836.3845 | G44: Link to EPA GHG Equivalencies Calculator (2017)
C45: NPV calculation assumes steady stream of savings over period. In practice, end-user may replace the fixture earlier due to lumen depreciation and incur an additional cost.

Sheet LED_Lamp_Chart
C6: 1 | D6: MVR400/U --> Type A LED | E6: 460 | F6: ABV3-24T | G6: 165 | H6: 20000 | I6: 1 | J6: 50000
C7: 2 | D7: MVR400/U --> Type B LED | E7: 460 | F7: ABV3 18T | G7: 150 | H7: 20000 | I7: 1 | J7: 50000
C8: 3 | D8: MVR250/U --> Type A LED | E8: 290 | F8: ABV3-18T | G8: 80 | H8: 10000 | I8: 1 | J8: 50000
C9: 4 | D9: MVR250/U --> Type B LED | E9: 290 | F9: ABV3 18T | G9: 115 | H9: 10000 | I9: 1 | J9: 50000
C10: 5 | D10: MVR175/U --> Type A LED | E10: 210 | F10: ABV3-12T | G10: 60 | H10: 10000 | I10: 1 | J10: 50000
C11: 6 | D11: MVR175/U --> Type B LED | E11: 210 | F11: ABV3-09T | G11: 80 | H11: 10000 | I11: 1 | J11: 50000
E15: Lamp W | F15: SYS Watts | G15: Lumens | H15: Sys. LPW
D16: 400 LED Type A | E16: 130 | F16: 165 | G16: 18500 | H16: =G16/F16 -> 112.1212121 | I16: 460
D17: 400 LED Type A (old) | E17: 165 | F17: 195 | G17: 20000 | H17: 102.5641026 | I17: 460
D18: 400 LED Type B | F18: 150 | G18: 23500 | H18: 156.6666667 | I18: 460
D19: 250 LED Type A | E19: 80 | F19: 112 | G19: 11800 | H19: 105.3571429 | I19: 290
D20: 250 LED Type B | F20: 115 | G20: 18000 | H20: 156.5217391 | I20: 290
D21: 175 LED Type A | E21: 60 | F21: 88 | G21: 8800 | H21: 100 | I21: 210
D22: 175 LED Type B | F22: 80 | G22: 12000 | H22: 150 | I22: 210
D23: 100 LED Type B | E23: 50 | F23: 50 | G23: 7500 | H23: 150 | I23: 120
C26: Legend | D26: HID --> LED Lamp | E26: Lamp W | F26: Sys W | G26: Lumens | H26: Sys LPW | I26: HID W | J26: Savings W | K26: Savings %
C27: 1 | D27: 400 --> LED Type B | E27: 150 | F27: 150 | G27: 23500 | H27: =G27/F27 -> 156.6666667 | I27: 460 | J27: =I27-F27 -> 310 | K27: =J27/I27 -> 0.6739130435
C28: 2 | D28: 250 --> LED Type B | E28: 115 | F28: 115 | G28: 18000 | H28: 156.5217391 | I28: 290 | J28: 175 | K28: 0.6034482759
C29: 3 | D29: 175 --> LED Type B | E29: 80 | F29: 80 | G29: 12000 | H29: 150 | I29: 210 | J29: 130 | K29: 0.619047619
C30: 4 | D30: 100 --> LED Type B | E30: 50 | F30: 50 | G30: 7500 | H30: 150 | I30: 120 | J30: 70 | K30: 0.5833333333
D31: 70 --> LED Type B | E31: 35 | F31: 35 | G31: 5000 | H31: 142.8571429 | I31: 94 | J31: 59 | K31: 0.6276595745
D32: 50 --> LED Type B | E32: 21 | F32: 21 | G32: 3000 | H32: 142.8571429 | I32: 67 | J32: 46 | K32: 0.6865671642
C33: Legend | D33: LED Lamp | E33: Lamp W | F33: Sys W | G33: Lumens | H33: Sys LPW | I33: HID W | J33: Savings W | K33: Savings %
C34: 5 | D34: 400 --> LED Type A | E34: 130 | F34: 165 | G34: 18500 | H34: =G34/F34 -> 112.1212121 | I34: 460 | J34: =I34-F34 -> 295 | K34: =J34/I34 -> 0.6413043478
C35: 6 | D35: 400 --> old LED Type A | E35: 165 | F35: 195 | G35: 20000 | H35: =G35/F35 -> 102.5641026 | I35: 460 | J35: =I35-F35 -> 265 | K35: =J35/I35 -> 0.5760869565
C36: 7 | D36: 250 --> LED Type A | E36: 80 | F36: 112 | G36: 11800 | H36: =G36/F36 -> 105.3571429 | I36: 290 | J36: =I36-F36 -> 178 | K36: =J36/I36 -> 0.6137931034
C37: 8 | D37: 175 --> LED Type A | E37: 60 | F37: 88 | G37: 8800 | H37: =G37/F37 -> 100 | I37: 210 | J37: =I37-F37 -> 122 | K37: =J37/I37 -> 0.580952381
C39: Link to Type B Spec Sheets on Web | F39: Checklist Type A | H39: Link to Type A Spec Sheets on Web
F40: Checklist Type B

Sheet HID_Hi_Watt_to_LED_Lamp
C1: LED Payback Calculator | F1: Put your company logo here
F2: Enter information in green cells; other cells are calculated values (Review -> Unprotect sheet if you want to make changes.) Maintenance savings are projected assuming existing system has reached long-term (steady state.)
F3: Opportunity Analysis prepared for: | G3: Date
C4: Select the lamp retrofit suggested | F4: your email here | G4: your phone # here
C5: Manufacturing Area | F5: Ballast Compatiblity | O5: 1 | P5: MVR400 --> LED Type A | Q5: MVR400 | R5: 460 | S5: LED130/2M400/750 | T5: 88109 | U5: 165 | V5: 20000 | W5: M59, M135, M155 | X5: 18500
C6: Existing Lamp/Fixture Description | D6: =VLOOKUP(N6,O5:X14,3,FALSE) -> MVR400 | F6: Generally compatible with CWA ANSI Ballast type | G6: =VLOOKUP(N6,O5:X14,9,FALSE) -> bypass the ballast | N6: 3 | O6: 2 | P6: MVR400 --> LED Type B | Q6: MVR400 | R6: 460 | S6: LED115ED28/750 | T6: 22623 | U6: 115 | V6: 20000 | W6: bypass the ballast | X6: 18000
C7: # Fixtures | D7: 100 | F7: (most common metal halide ballasts, probe-start and pulse start.) Type A not for use with reactor ballasts or electronic ballasts. Not for use with High Pressure Sodium ballasts. Not for use with any dimming systems. | O7: 3 | P7: MVR400 --> High Lumen Type B | Q7: MVR400 | R7: 460 | S7: LED150ED28/750 | T7: 22613 | U7: 150 | V7: 20000 | W7: bypass the ballast | X7: 23500
C8: Fixture Watts, Existing | D8: =VLOOKUP(N6,O5:X14,4,FALSE) -> 460 | J8: Year | K8: $ | O8: 4 | P8: MVR250 --> LED Type A | Q8: MVR250 | R8: 290 | S8: LED80/2M250/750 | T8: 88099 | U8: 112 | V8: 10000 | W8: M58, M138, M153 | X8: 11800
C9: Burn hr. annual | D9: 6000 | J9: 0 | K9: =-D27 -> -20000 | O9: 5 | P9: MVR250 --> LED Type B | Q9: MVR250 | R9: 290 | S9: LED80ED23.5/750 | T9: 22676 | U9: 80 | V9: 10000 | W9: bypass the ballast | X9: 12000
C10: Energy Rate $ per kWh | D10: 0.11 | F10: Clik here for Checklist Type A | G10: Checklist Type B | J10: 1 | K10: =IF(K9+$D$23>$D$35,0,(K9+$D$23)) -> 4585 | O10: 6 | P10: MVR250 --> High Lumen Type B | Q10: MVR250 | R10: 290 | S10: LED115ED28/750 | T10: 22623 | U10: 115 | V10: 10000 | W10: bypass the ballast | X10: 18000
C11: Annual Energy Use (Existing) | D11: =D7*D8*D9*D10/1000 -> 30360 | F11: Click here for ballast compatibility list for Type A | J11: 2 | K11: =IF(K10=$D$35,0,IF(K10=0,0,IF(K10+$D$23<$D$35,K10+$D$23,$D$35))) -> 29170 | O11: 7 | P11: MVR175 --> LED Type A | Q11: MVR175 (Mogul base) | R11: 210 | S11: LED60/2M175/750 | T11: 88107 | U11: 88 | V11: 10000 | W11: M57, M137, M152 | X11: 8800
C12: Proposed Lamp Description (5000K if avail.) | D12: =VLOOKUP(N6,O5:X14,5,FALSE) -> LED150ED28/750 | F12: Maintenance Savings Calculation | J12: 3 | K12: 53755 | O12: 8 | P12: MVR175 --> LED Type B | Q12: MVR175 (Mogul base) | R12: 210 | S12: LED50ED23.5/750 | T12: 22739 | U12: 50 | V12: 10000 | W12: bypass the ballast | X12: 7500
C13: Part Number | D13: =VLOOKUP(N6,O5:X14,6,FALSE) -> 22613 | F13: Maintenance Savings | J13: 4 | K13: 78340 | O13: 9 | P13: MVR175 -->High Lumen Type B | Q13: MVR175 (Mogul base) | R13: 210 | S13: LED80ED23.5/750 | T13: 22676 | U13: 80 | V13: 10000 | W13: bypass the ballast | X13: 12000
C14: Lamp Initial Lumens | D14: =VLOOKUP(N6,O5:X14,10,FALSE) -> 23500 | F14: Existing Lamp/Fixture Description | G14: =D6 -> MVR400 | J14: 5 | K14: 102925 | O14: 10 | P14: MVR175 Med Base --> LED Type B | Q14: MVR175 (Med. base) | R14: 210 | S14: LED80ED23.5M/740 | T14: 22768 | U14: 80 | V14: 10000 | W14: bypass the ballast | X14: 12000
C15: LED Lamp Rated Life (hr.) | D15: 50000 | F15: # Fixtures | G15: =D7 -> 100 | J15: 6 | K15: 127510 | P15: =VLOOKUP(N6,O5:X13,8,FALSE) -> 20000
C16: LED Lamp Rated Life (years) | D16: =D15/D9 -> 8.333333333 | F16: # lamps per fixture | G16: 1 | J16: 7 | K16: 152095 | P16: =IF(D8=460,IF(E20=1,20000,15000),IF(E19=1,IF(E20=1, 10000,6000),IF(E20=1,15000,12000))) -> 20000
C17: Fixture Watts with LED lamp | D17: =VLOOKUP(N6,O5:X14,7,FALSE) -> 150 | F17: Annual Burn hr. | G17: =D9 -> 6000 | J17: 8 | K17: 176680
C18: Costs-Benefits | F18: HID lamp Life hours | G18: =P16 -> 20000 | J18: 9 | K18: 184875
C19: Annual Burn hr. (do not change here, go to D9) | D19: =D9 -> 6000 | E19: 1 | F19: Cost per lamp (HID) | G19: 25 | J19: 10 | K19: 0
C20: Annual Energy Use (for proposed) | D20: =D7*D17*D19*D10/1000 -> 9900 | E20: 1 | F20: Labor to replace one lamp | G20: 25
C21: Energy Savings | D21: =D11-D20 -> 20460 | E21: 1 | F21: Disruption cost per event (lamp or ballast out) | G21: 50
C22: Maintenance Savings (estimated) | D22: =IF(E21=2,0,G33) -> 4125 | F22: Estimated # annual lamps replaced (steady state) | G22: =(G17/G18)*G15*G16 -> 30
C23: Total Annual Savings | D23: =D21+D22 -> 24585 | F23: Annual Cost of lamps replaced | G23: =G22*G19 -> 750
C24: Cost of Proposed Lamp | D24: 200 | F24: Annual labor for lamps replaced | G24: =G22*G20 -> 750
C25: Labor to Install per fixture | D25: 50 | F25: Annual disruption from lamps replaced | G25: =G22*G21 -> 1500
C26: Rebate per fixture (put in brackets) | D26: -50 | F26: Annual Maintenance cost of existing lamps | G26: =SUM(G23:G25) -> 3000
C27: Total Investment Required | D27: =D7*(D24+D25+D26) -> 20000 | F27: Maintenance costs associated with replacement of failed ballasts is not factored in for type A because it is the same for both systems. But for Type B there will be maintenance savings which are calculated below.
C28: Summary of Benefits
C29: Investment per fixture to upgrade | D29: =SUM(D24:D26) -> 200 | F29: Estimated # annual ballasts replaced (steady state) | G29: =(D9/80000)*D7 -> 7.5
C30: Annual savings per fixture | D30: =D23/D7 -> 245.85 | F30: Cost per ballast | G30: 65
C31: Net Energy Savings per lamp over life of lamp | D31: =D21*D16/D7 -> 1705 | E31: FALSE | F31: Labor to replace ballast | G31: 35
C32: Net cash generated by each lamp over life | D32: =D30*D16-D29 -> 1848.75 | E32: FALSE | F32: Annual Maintenance cost ballasts (Type B only) | G32: =G29*(G30+G31+G21) -> 1125
C33: Simple ROI | D33: =D23/D27 -> 1.22925 | F33: Total Annual Maintenance Savings | G33: =IF(G6="Bypass the ballast",G26+G32,G26) -> 4125
C34: Payback (months) | D34: =12*D27/D23 -> 9.762050031 | F34: Environmental Impact (USA, 2017 numbers)
C35: Net Positive Cash by end of LED lamp life | D35: =D23*D16-D27 -> 184875 | F35: kWh saved per year | G35: =D7*(D8*D9-D17*D19)/1000 -> 186000
C36: Cost of Waiting (doing nothing) | F36: Metric tons CO2 emission reduced per year | G36: =G35*G42 -> 130.758
C37: Cost of waiting per year | D37: =D23 -> 24585 | F37: lb. coal burning avoided per year | G37: =G36/G43 -> 139549.6265
C38: Cost of waiting each month | D38: =D37/12 -> 2048.75 | F38: Metric tons coal burning avoided per year | G38: =G37/2205 -> 63.28781246
C39: Cost of waiting = energy/maintenance spending that could be avoided by upgrading | F39: Equivalent gallons of gasoline burning avoided | G39: =G36/G44 -> 14708.43645
C40: Net Present Value (NPV) Calculation | F40: Equivalent acres of forest added | G40: =G36/G45 -> 123.3566038
C41: Discount rate for NPV calculation | D41: 0.08 | F41: Numbers for these calculations | G41: EPA Website link
C42: Net Present Value of Project (NPV) 5 years | D42: =NPV(D41,D23,D23,D23,D23,D23)-D27 -> 78160.77626 | F42: CO2 Emission factor (metric tons CO2 per kWh generated) | G42: 0.000703
C43: Net Present Value of Project (NPV) 10 years | D43: =IF(D16>=10,(NPV(D41,D23,D23,D23,D23,D23,D23,D23,D23,D23,D23)-D27),"Not valid") -> Not valid | F43: CO2 released metric tons. per per lb. of coal burned | G43: 0.000937
C44: NPV calculation assumes steady stream of savings over period. In practice, end-user may replace the fixture earlier due to lumen depreciation and incur an additional cost. | F44: metric tons CO2 released per gallon of gasoline burned | G44: 0.00889
F45: CO2 sequestration metric ton.per acre of forest per year | G45: 1.06
C46: Click here for Tool Documentation
C100: Back to Tool

Sheet HID_Low_Watt_to_LED_Lamp
C1: LED Payback Calculator | F1: Put your company logo here
F2: Enter information in green cells; other cells are calculated values Maintenance savings are projected assuming existing system has reached long-term (steady state.) If sheet is protected go to Review -> Unprotect sheet if you want to make changes (no password.)
F3: Opportunity Analysis prepared for: | G3: Date
C4: Select the lamp retrofit suggested | F4: your email here | G4: your phone # here | R4: HID sys W | U4: LED W | V4: life | X4: Lumens | Y4: LED Life
C5: Manufacturing Area | F5: Ballast Compatiblity | O5: 1 | P5: MVR175 med base probe st.--> LED | Q5: MVR175 (probe st.) | R5: 210 | S5: LED80ED23.5M/740 | T5: 22768 | U5: 80 | V5: 10000 | W5: bypass the ballast | X5: 12000 | Y5: 50000
C6: Existing Lamp/Fixture Description | D6: =VLOOKUP(N6,Lamp_choices,3,FALSE) -> MVR175 (probe st.) | F6: These are direct wired lamps, ballast is removed | N6: 1 | O6: 2 | P6: MVR 175 Pulse St. --> LED 4000K | Q6: MVR175 (pulse st.) | R6: 210 | S6: LED80ED23.5M/740 | T6: 22768 | U6: 80 | V6: 15000 | W6: bypass the ballast | X6: 12000 | Y6: 50000
C7: # Fixtures | D7: 100 | F7: NOTE: All medium base LED lamps are Type B (ballast bypass) and cover 50W - 175W metal halide replacements. Mogul base LED lamps are available in Type A or B and cover 175W - 400W metal halide replacements. | O7: 3 | P7: MVR/MXR150 --> LED 4000K | Q7: MVR/MXR150PA | R7: 185 | S7: LED80ED23.5M/740 | T7: 22768 | U7: 80 | V7: 15000 | W7: bypass the ballast | X7: 12000 | Y7: 50000
C8: Fixture Watts, Existing | D8: =VLOOKUP(N6,Lamp_choices,4,FALSE) -> 210 | J8: Year | K8: $ | O8: 4 | P8: MVR/MXR100 --> LED 4000K | Q8: MVR/MXR100 | R8: 120 | S8: LED50ED23.5M/740 | T8: 22779 | U8: 50 | V8: 15000 | W8: bypass the ballast | X8: 7500 | Y8: 50000
C9: Burn hr. annual | D9: 6000 | J9: 0 | K9: =-D27 -> -12000 | O9: 5 | P9: MVR/MXR70 --> LED 5000K | Q9: MVR/MXR70 | R9: 88 | S9: LED35ED17/750 | T9: 27724 | U9: 35 | V9: 12000 | W9: bypass the ballast | X9: 5000 | Y9: 50000
C10: Energy Rate $ per kWh | D10: 0.11 | F10: Clik here for Checklist for Type B lamps | J10: 1 | K10: =IF(K9+$D$23>$D$35,0,(K9+$D$23)) -> -3420 | O10: 6 | P10: MVR/MXR70 --> LED 4000K | Q10: MVR/MXR70 | R10: 88 | S10: LED35ED17/740 | T10: 27602 | U10: 35 | V10: 12000 | W10: M58, M138, M153 | X10: 5000 | Y10: 50000
C11: Annual Energy Use (Existing) | D11: =D7*D8*D9*D10/1000 -> 13860 | F11: Type B lamps are not compatible with dimmers | J11: 2 | K11: =IF(K10=$D$35,0,IF(K10=0,0,IF(K10+$D$23<$D$35,K10+$D$23,$D$35))) -> 5160 | O11: 7 | P11: MXR50 --> LED 5000K | Q11: MXR50 | R11: 67 | S11: LED21ED17/750 | T11: 27732 | U11: 21 | V11: 10000 | W11: bypass the ballast | X11: 3000 | Y11: 50000
C12: Proposed Lamp Description (5000K if avail.) | D12: =VLOOKUP(N6,Lamp_choices,5,FALSE) -> LED80ED23.5M/740 | F12: Maintenance Savings Calculation | J12: 3 | K12: 13740 | O12: 8 | P12: MXR50 --> LED 4000K | Q12: MXR50 | R12: 67 | S12: LED21ED17/740 | T12: 27729 | U12: 21 | V12: 10000 | W12: bypass the ballast | X12: 3000 | Y12: 50000
C13: Part Number | D13: =VLOOKUP(N6,Lamp_choices,6,FALSE) -> 22768 | F13: Maintenance Savings | J13: 4 | K13: 22320
C14: LED Lamp Initial Lumens | D14: =VLOOKUP(N6,Lamp_choices,10,FALSE) -> 12000 | F14: Existing Lamp/Fixture Description | G14: =D6 -> MVR175 (probe st.) | J14: 5 | K14: 30900
C15: LED Lamp Rated Life (hr.) | D15: =VLOOKUP(N6,Lamp_choices,11,FALSE) -> 50000 | F15: # Fixtures | G15: =D7 -> 100 | J15: 6 | K15: 39480 | P15: =VLOOKUP(N6,Lamp_choices,8,FALSE) -> 10000
C16: LED Lamp Rated Life (years) | D16: =D15/D9 -> 8.333333333 | F16: # lamps per fixture | G16: 1 | J16: 7 | K16: 48060 | P16: =IF(N6=1,IF(E20=1,10000,6000),P15) -> 10000
C17: Fixture Watts with LED lamp | D17: =VLOOKUP(N6,Lamp_choices,7,FALSE) -> 80 | F17: Annual Burn hr. | G17: =D9 -> 6000 | J17: 8 | K17: 56640
C18: Costs-Benefits | F18: HID lamp rated life (hr.) | G18: =P16 -> 10000 | J18: 9 | K18: 59500
C19: Annual Burn hr. (do not change here, go to D9) | D19: =D9 -> 6000 | E19: 1 | F19: Cost per lamp (HID) | G19: 25 | J19: 10 | K19: 0
C20: Annual Energy Use (for proposed) | D20: =D7*D17*D19*D10/1000 -> 5280 | E20: 1 | F20: Labor to replace one lamp | G20: 25
C21: Energy Savings | D21: =D11-D20 -> 8580 | E21: 2 | F21: Disruption cost per event (lamp or ballast out) | G21: 50
C22: Maintenance Savings (estimated) | D22: =IF(E21=2,0,G33) -> 0 | F22: Estimated # annual lamps replaced (steady state) | G22: =(G17/G18)*G15*G16 -> 60
C23: Total Annual Savings | D23: =D21+D22 -> 8580 | F23: Annual Cost of lamps replaced | G23: =G22*G19 -> 1500
C24: Cost of Proposed Lamp | D24: 120 | F24: Annual labor for lamps replaced | G24: =G22*G20 -> 1500
C25: Labor to Install per fixture | D25: 50 | F25: Annual disruption from lamps replaced | G25: =G22*G21 -> 3000
C26: Rebate per fixture (put in brackets) | D26: -50 | F26: Annual Maintenance cost of existing lamps | G26: =SUM(G23:G25) -> 6000
C27: Total Investment Required | D27: =D7*(D24+D25+D26) -> 12000 | F27: This tool assumes that ballast life is 80,000 hours and estimates the additional maintenance savings from avoiding ballast replacements by going to a type B LED solution.
C28: Summary of Benefits
C29: Investment per fixture to upgrade | D29: =SUM(D24:D26) -> 120 | F29: Estimated # annual ballasts replaced (steady state) | G29: =(D9/80000)*D7 -> 7.5
C30: Annual savings per fixture | D30: =D23/D7 -> 85.8 | F30: Cost per ballast | G30: 65
C31: Net Energy Savings per lamp over life of lamp | D31: =D21*D16/D7 -> 715 | E31: FALSE | F31: Labor to replace ballast | G31: 35
C32: Net cash generated by each lamp over its life | D32: =D30*D16-D29 -> 595 | E32: FALSE | F32: Annual Maintenance cost ballasts | G32: =G29*(G30+G31+G21) -> 1125
C33: Simple ROI | D33: =D23/D27 -> 0.715 | F33: Total Annual Maintenance Savings | G33: =IF(G6="Bypass the ballast",G26+G32,G26) -> 6000
C34: Payback (months) | D34: =12*D27/D23 -> 16.78321678 | F34: Environmental Impact (USA, 2017 numbers)
C35: Net Positive Cash by end of LED lamp life | D35: =D23*D16-D27 -> 59500 | F35: kWh saved per year | G35: =D7*(D8*D9-D17*D19)/1000 -> 78000
C36: Cost of Waiting (doing nothing) | F36: Metric tons CO2 emission reduced per year | G36: =G35*G42 -> 54.834
C37: Cost of waiting per year | D37: =D23 -> 8580 | F37: lb. coal burning avoided per year | G37: =G36/G43 -> 58520.8111
C38: Cost of waiting each month | D38: =D37/12 -> 715 | F38: Metric tons coal burning avoided per year | G38: =G37/2205 -> 26.54005039
C39: Cost of waiting = energy/maintenance spending that could be avoided by upgrading now | F39: Equivalent gallons of gasoline burning avoided | G39: =G36/G44 -> 6168.053993
C40: Net Present Value (NPV) Calculation | F40: Equivalent acres of forest added | G40: =G36/G45 -> 51.73018868
C41: Discount rate for NPV calculation | D41: 0.08 | F41: Numbers for these calculations | G41: EPA Website link
C42: Net Present Value of Project (NPV) 5 years | D42: =NPV(D41,D23,D23,D23,D23,D23)-D27 -> 22257.45212 | F42: CO2 Emission factor (metric tons CO2 per kWh generated) | G42: 0.000703
C43: Net Present Value of Project (NPV) 10 years | D43: =IF(D16>=10,(NPV(D41,D23,D23,D23,D23,D23,D23,D23,D23,D23,D23)-D27),"Lamp life less than 10 yrs.") -> Lamp life less than 10 yrs. | F43: CO2 released metric tons. per per lb. of coal burned | G43: 0.000937
C44: NPV calculation assumes steady stream of savings over period. In practice, end-user may replace the fixture earlier due to lumen depreciation and incur an additional cost. | F44: metric tons CO2 released per gallon of gasoline burned | G44: 0.00889
F45: CO2 sequestration metric ton.per acre of forest per year | G45: 1.06
C46: Click here for Tool Documentation
C100: Back to Tool

Sheet Tube_System_Wattages
D2: Fixture Watts w/flourescent | G2: Fixture watts with LED Tubes
G3: Existing Ballast | L3: Ballast Removed
G4: Type A | L4: Type B | N4: Type C
B5: Tube --> | D5: 25W | E5: 28W | F5: 32W | G5: 10W | H5: 12W | I5: 13W | J5: 15W | K5: 18W | L5: 11W | M5: 14W | N5: 10W | O5: 13W | P5: 18W
B6: 2-lamp Fixture | C6: Low bf | D6: 40 | E6: 43 | F6: 50 | G6: 21 | H6: 24 | I6: 29 | J6: 30 | K6: 34 | L6: 22 | M6: 28 | N6: 24 | O6: 30 | P6: 42
C7: Normal bf | D7: 43 | E7: 47 | F7: 55 | G7: 23 | H7: 29 | I7: 32 | J7: 35 | K7: 41
C8: High bf | D8: 60 | E8: 64 | F8: 76 | G8: 32 | H8: 42 | I8: 44 | J8: 48 | K8: 54
B9: 3-lamp Fixture | C9: Low bf | D9: 59 | E9: 63 | F9: 73 | G9: 32 | H9: 36 | I9: 44 | J9: 45 | K9: 51 | L9: 33 | M9: 42 | N9: 36 | O9: 45 | P9: 63
C10: Normal bf | D10: 65 | E10: 66 | F10: 80 | G10: 35 | H10: 44 | I10: 48 | J10: 53 | K10: 62
C11: High bf | D11: 86 | E11: 92 | F11: 110 | G11: 49 | H11: 63 | I11: 66 | J11: 73 | K11: 81
B12: 4-lamp Fixture | C12: Low bf | D12: 77 | E12: 85 | F12: 98 | G12: 42 | H12: 48 | I12: 58 | J12: 60 | K12: 68 | L12: 44 | M12: 56 | N12: 48 | O12: 60 | P12: 84
C13: Normal bf | D13: 87 | E13: 92 | F13: 110 | G13: 46 | H13: 58 | I13: 64 | J13: 70 | K13: 82
C14: High bf | D14: 116 | E14: 121 | F14: 143 | G14: 65 | H14: 84 | I14: 88 | J14: 96 | K14: 108

Sheet LED_Tube_Type-A
C1: LED Type A Tube Simple Payback & ROI Calculator | F1: Put your company logo here
F2: Enter information in green cells; white cells are calculated values. This calculator includes projected maintenance savings based on the assumption that the existing system has reached long-term (steady state) failure rates.
F3: Opportunity Analysis prepared for SIMCO Industries | G3: Feb. 23, 2017
F4: Your email address | G4: Phone No.
B5: Name of Area | F5: Maintenance Savings
B6: Existing Fluorescent Tube | D6: F32T8 Std | F6: Supporting Maintenance Savings Calculation
B7: # Fixtures | D7: 5000
B8: # lamps per fixture | D8: 4 | F8: Existing Fluorescent Tube | G8: =D6 -> F32T8 Std | J8: Year | K8: $
B9: Ballast Factor of ballast (L, N or H?) | F9: # Fixtures | G9: =D7 -> 5000 | J9: 0 | K9: =-D27 -> -170000
B10: Fixture Watts (Check System Wattage sheet) * | D10: 110 | F10: # lamps per fixture | G10: =D8 -> 4 | J10: 1 | K10: =IF(K9+$D$23>$D$30,0,(K9+$D$23)) -> -8000
B11: Burn hr. annual | D11: 6000 | F11: Annual Burn hr. | G11: =D11 -> 6000 | J11: 2 | K11: =IF(K10=$D$30,0,IF(K10=0,0,IF(K10+$D$23<$D$30,K10+$D$23,$D$30))) -> 154000
B12: Energy Rate | D12: 0.07 | F12: Fluorescent Lamp Life (hr.) | G12: 30000 | J12: 3 | K12: =IF(K11=$D$30,0,IF(K11=0,0,IF(K11+$D$23<$D$30,K11+$D$23,$D$30))) -> 316000
B13: Annual Energy Use (Existing) | D13: =D7*D10*D11*D12/1000 -> 231000 | F13: Cost per fluorescent lamp | G13: 4 | J13: 4 | K13: 478000
B14: Proposed LED Tube | D14: 15W | F14: Labor to replace one lamp | G14: 10 | J14: 5 | K14: 640000
B15: Part Number (optional) | F15: Disposal Cost per lamp | G15: 0.5 | J15: 6 | K15: 802000
B16: Fixture Watts with LED Tube (Check)* | D16: 70 | F16: Disruption cost per event | G16: 5 | J16: 7 | K16: 964000
B17: Rated life of LED tube (hr.) | D17: 70000 | F17: Estimated annual lamps replaced | G17: =(G11/G12)*G9*G10 -> 4000 | J17: 8 | K17: 1126000
B18: Rated life of LED tube (years) | D18: =D17/D11 -> 11.66666667 | F18: Annual Cost of lamps replaced | G18: =G17*G13 -> 16000 | J18: 9 | K18: 1288000
B19: Annual Burn hr. | D19: =D11 -> 6000 | F19: Annual labor for lamps replaced | G19: =G17*G14 -> 40000 | J19: 10 | K19: 1450000
B20: Annual Energy Use (Proposed) | D20: =D7*D16*D19*D12/1000 -> 147000 | F20: Annual disposal cost of lamps replaced | G20: =G17*G15 -> 2000
B21: Energy Savings | D21: =D13-D20 -> 84000 | E21: 1 | F21: Annual disruption from lamps replaced | G21: =G17*G16 -> 20000
B22: Maintenance Savings (estimated) | D22: =IF(E21=2,0,G23) -> 78000 | F22: Annual Maintenance cost of lamps | G22: =(G11/G12)*G9*G10*(G13+G14+G15+G16) -> 78000
B23: Total Annual Savings | D23: =D21+D22 -> 162000 | F23: Annual Maintenance Savings (est.) | G23: =G22 -> 78000
B24: Cost of Proposed Lamps (per fixture) | D24: 40
B25: Labor to Install per fixture | D25: 10 | F25: * Obtain intial and final wattage of fixture by going to the System Wattages Sheet (from the HOME page) and entering the appropriate wattage for the fixure with fluorescent tubes and with the selected LED tube. We Recommended upgrade to maintain light levels Fluorescent 32W Hight Lumen T8 to 18 W LED Tube Fluorescent 32W std. or 28W T8 to 15W LED Tube FLuorescent 25W T8 to 10W (or 12W) LED Tube
B26: Additional Cost/rebate per fixture | D26: -16
B27: Investment Required | D27: =D7*(D24+D25+D26) -> 170000
B28: Simple ROI | D28: =D23/D27 -> 0.9529411765
B29: Payback (months) | D29: =12*D27/D23 -> 12.59259259
B30: Net Positive Cash by end of lamp life | D30: =D23*D18 -> 1890000

Sheet LED_Tube_Type-B
D1: LED Tube Type C Simple Payback & ROI Calculator
F2: Enter information in green cells; blue cells are calculated values. This calculator includes projected maintenance savings based on the assumption that the existing system has reached long-term (steady state) failure rates.
F3: Opportunity Analysis prepared: | G3: 2020-10-01
F4: Your email address | G4: Phone No.
C5: Manufacturing Area | F5: Maintenance Savings
C6: Existing Fluorescent Tube | D6: F28T8 | F6: Supporting Maintenance Savings Calculation
C7: # Fixtures | D7: 240
C8: # lamps per fixture | D8: 4 | F8: Existing Fluorescent Tube | G8: =D6 -> F28T8 | J8: year | K8: $
C9: Ballast Factor of ballast (L, N or H?) | F9: # Fixtures | G9: =D7 -> 240 | J9: 1 | K9: =-D27 -> -16800
C10: Fixture Watts (Check System Wattage sheet) * | D10: 112 | F10: # lamps per fixture | G10: =D8 -> 4 | J10: 2 | K10: =IF(K9+$D$23>$D$30,0,(K9+$D$23)) -> 2326.4
C11: Burn hr. annual | D11: 8000 | F11: Annual Burn hr. | G11: =D11 -> 8000 | J11: 3 | K11: =IF(K10=$D$30,0,IF(K10=0,0,IF(K10+$D$23<$D$30,K10+$D$23,$D$30))) -> 21452.8
C12: Energy Rate | D12: 0.11 | F12: Fluorescent Lamp Life (hr.) | G12: 30000 | J12: 4 | K12: =IF(K11=$D$30,0,IF(K11=0,0,IF(K11+$D$23<$D$30,K11+$D$23,$D$30))) -> 40579.2
C13: Annual Energy Use (Existing) | D13: =D7*D10*D11*D12/1000 -> 23654.4 | F13: Cost per fluorescent lamp | G13: 4 | J13: 5 | K13: 59705.6
C14: Proposed LED Tube | F14: Labor to replace one lamp | G14: 10 | J14: 6 | K14: 78832
C15: Part Number | F15: Disposal Cost per lamp | G15: 0.5 | J15: 7 | K15: 97958.4
C16: Fixture Watts with LED Tube** | D16: 60 | F16: # ballasts per fixture | G16: 2 | J16: 8 | K16: 117084.8
C17: Rated life of LED tube (hr.) | D17: 50000 | F17: Ballast Life (hr.) | G17: 80000 | J17: 9 | K17: 119540
C18: Rated life of LED tube (years) | D18: =D17/D11 -> 6.25 | F18: Cost per ballast | G18: 14 | J18: 10 | K18: 0
C19: Annual Burn hr. | D19: =D11 -> 8000 | F19: Labor to replace one ballast | G19: 15
C20: Annual Energy Use (Proposed) | D20: =D7*D16*D19*D12/1000 -> 12672 | F20: Disposal Cost per ballast | G20: 0
C21: Energy Savings | D21: =D13-D20 -> 10982.4 | E21: 1 | F21: Disruption cost per event | G21: 10
C22: Maintenance Savings (estimated) | D22: =IF(E21=2,0,G26) -> 8144 | F22: Estimated annual lamps replaced | G22: =(G11/G12)*G9*G10 -> 256
C23: Total Annual Savings | D23: =D21+D22 -> 19126.4 | F23: Estimated ballasts replaced annually | G23: =(G11/G17)*G9*G16 -> 48
C24: Cost of retrofit materials (per fixture) | D24: 65 | F24: Annual Maintenance cost of lamps | G24: =G22*(G13+G14+G15+G21) -> 6272
C25: Labor to Install per fixture | D25: 25 | F25: Annual Maintenance cost of ballasts | G25: =G23*(G18+G19+G20+G21) -> 1872
C26: Additional Cost/(rebate) per fixture | D26: -20 | F26: Total annual maintenance costs | G26: =G24+G25 -> 8144
C27: Investment Required | D27: =D7*(D24+D25+D26) -> 16800
C28: Simple ROI | D28: =D23/D27 -> 1.13847619
C29: Payback (months) | D29: =12*D27/D23 -> 10.54040489
C30: Net Positive Cash by end of lamp life | D30: =D23*D18 -> 119540

Sheet LED_Tube_Type-C
D1: LED Simple Payback and ROI Calculator
F2: Enter information in green cells; blue cells are calculated values. This calculator includes projected maintenance savings based on the assumption that the existing system has reached long-term (steady state) failure rates.
F3: Opportunity Analysis prepared for SIMCO Industries | G3: 2017-04-04
F4: =#REF! ->  | G4: =#REF! -> 
C5: Manufacturing Area | F5: Maintenance Savings
C6: Existing Fluorescent Tube | D6: F28T8 | F6: Supporting Maintenance Savings Calculation
C7: # Fixtures | D7: 240
C8: # lamps per fixture | D8: 4 | F8: Existing Fluorescent Tube | G8: =D6 -> F28T8 | K8: $
C9: Fixture Watts (Check System Wattage sheet) * | D9: 112 | F9: # Fixtures | G9: =D7 -> 240 | J9: 1 | K9: =-D26 -> -16800
C10: Burn hr. annual | D10: 6880 | F10: # lamps per fixture | G10: =D8 -> 4 | J10: 2 | K10: =IF(K9+$D$22>$D$29,0,(K9+$D$22)) -> -3100.544
C11: Energy Rate | D11: 0.11 | F11: Annual Burn hr. | G11: =D10 -> 6880 | J11: 3 | K11: =IF(K10=$D$29,0,IF(K10=0,0,IF(K10+$D$22<$D$29,K10+$D$22,$D$29))) -> 10598.912
C12: Annual Energy Use (Existing) | D12: =D7*D9*D10*D11/1000 -> 20342.784 | F12: Fluorescent Lamp Life (hr.) | G12: 30000 | J12: 4 | K12: =IF(K11=$D$29,0,IF(K11=0,0,IF(K11+$D$22<$D$29,K11+$D$22,$D$29))) -> 24298.368
C13: Proposed LED Tube | F13: Cost per fluorescent lamp | G13: 4 | J13: 5 | K13: 37997.824
C14: Part Number | F14: Labor to replace one lamp | G14: 10 | J14: 6 | K14: 51697.28
C15: Fixture Watts with Current LED Tube** | D15: 84 | F15: Disposal Cost per lamp | G15: 0.5 | J15: 7 | K15: 65396.736
C16: Rated life of LED tube (hr.) | D16: 50000 | F16: ballasts per fixture | G16: 2 | J16: 8 | K16: 79096.192
C17: Rated life of LED tube (years) | D17: =D16/D10 -> 7.26744186 | F17: # Ballast Life (hr.) | G17: 80000 | J17: 9 | K17: 92795.648
C18: Annual Burn hr. | D18: =D10 -> 6880 | F18: Cost per ballast | G18: 14 | J18: 10 | K18: 99560
C19: Annual Energy Use (Proposed) | D19: =D7*D15*D18*D11/1000 -> 15257.088 | F19: Labor to replace one ballast | G19: 15 | K19: 0
C20: Energy Savings | D20: =D12-D19 -> 5085.696 | F20: Disposal Cost per ballast | G20: 0
C21: Maintenance Savings (estimated) | D21: =IF(E21=2,0,G26) -> 8613.76 | E21: 1 | F21: Disruption cost per event | G21: 10
C22: Total Annual Savings | D22: =D20+D21 -> 13699.456 | F22: Estimated annual lamps replaced | G22: =(G11/G12)*G9*G10 -> 220.16
C23: Cost of materials (per fixture) | D23: 65 | F23: Estimated ballasts replaced annually | G23: =(G11/G17)*G9*G10 -> 82.56
C24: Labor to Install per fixture | D24: 25 | F24: Annual Maintenance cost of lamps | G24: =G22*(G13+G14+G15+G21) -> 5393.92
C25: Additional Cost/(rebate) per fixture | D25: -20 | F25: Annual Maintenance cost of ballasts | G25: =G23*(G18+G19+G20+G21) -> 3219.84
C26: Investment Required | D26: =D7*(D23+D24+D25) -> 16800 | F26: TOTAL Annual Maintenance Cost (est.) | G26: =G24+G25 -> 8613.76
C27: Simple ROI | D27: =D22/D26 -> 0.8154438095
C28: Payback (months) | D28: =12*D26/D22 -> 14.71591281
C29: Net Positive Cash by end of lamp life | D29: =D22*D17 -> 99560

Sheet Fixture_Lumens
D2: Fluorescent to LED: Fixture Lumens and Watts
B3: This tool provides estimates of fixture lumens and watts for multi-lamp T8 fixtures and T12 fixtures Put in values in green cells.
B4: Lamp Type | C4: Initial Lumens | D4: No. of Lamps | F4: Ballast factor
C5: =VLOOKUP(P8,Q8:S17,3,FALSE) -> 2925 | E5: =IF(S18=4,6,1+S18) -> 4 | G5: =IF(P8=8, 0.86,VLOOKUP(T8,U8:W11,3,FALSE)) -> 0.88
B6: =IF(P8=4, "*NOTE: F32T8SP lumens changed from 2800 to 2450 in 2012. Since the ceiling probably has a mix of these lamps, an in-between number is being used for lumens.",IF(P8=8,"Please make sure you select T12-Mag in the ballst factor drop-down box",IF(T8=4, "Please pick an appropriate ballast for your lamp",""))) -> 
B7: Fixture Efficiency with Fluorescent Tubes | D7: Temperature Losses** | F7: **NOTE: The temperature inside fluorescent fixtures is higher than 76F which is where the catalog lumens are measured. | W7: BF
B8: 0.8 | D8: 0.05 | P8: 3 | Q8: 1 | R8: F32T8/HL | S8: 3100 | T8: 2 | U8: 1 | V8: High | W8: 1.18 | Y8: 1 | Z8: A
B9: Fluorescent Fixture Lumens | F9: Fluorescent Fixture Watts | Q9: 2 | R9: F32T8SPX | S9: 2950 | T9: 4 | U9: 2 | V9: Normal | W9: 0.88 | Y9: 2 | Z9: A
B10: Initial | C10: Mean | D10: End-of-Life | Q10: 3 | R10: F32T8SPP | S10: 2925 | U10: 3 | V10: Low | W10: 0.78 | Y10: 3 | Z10: A
B11: =C5*E5*G5*B8*(1-D8) -> 7824.96 | C11: =B11*U17 -> 7355.4624 | D11: =B11*V17 -> 7042.464 | F11: =IF(R18="A",R25,IF(R18="B",R26,IF(R18="C",R27,IF(R18 = "D", R28,"HoHo")))) -> 110 | L11: 2 | M11: 3 | N11: 4 | P11: 6 | Q11: 4 | R11: F32T8SP* | S11: 2600 | U11: 4 | V11: T12-Mag | W11: 0.86 | Y11: 4 | Z11: A
J12: A | K12: 1.18 | L12: 76 | M12: 110 | N12: 143 | P12: 219 | Q12: 5 | R12: F28T8 | S12: 2600 | U12: 6 | Y12: 5 | Z12: B
B13: LED Tube | J13: A | K13: 0.88 | L13: 55 | M13: 80 | N13: 110 | P13: 165 | Q13: 6 | R13: F32T8/25W | S13: 2500 | Y13: 6 | Z13: C
B14: Lumens on this ballast (initial) | C14: Fixture Efficiency wtih LED | D14: No. of Lamps | E14: LED Fixture Lumens | F14: LED Fixture Watts (lookup in System Wattages sheet) | G14: Ratio of LED to Fluor.lumens
B15: Selected LED Tube - 1 | D15: 15W Type A | J15: A | K15: 0.77 | L15: 50 | M15: 73 | N15: 98 | P15: 148 | U15: Mean L | V15: EOL lum | Y15: 7
B16: 2500 | C16: 0.9 | D16: 4 | E16: =B16*C16*D16 -> 9000 | G16: =E16/$B$11 -> 1.150165624
B17: Selected LED Tube - 2 | D17: Type B | J17: B | K17: 1.18 | L17: 64 | M17: 92 | N17: 121 | P17: 185 | Q17: 8 | R17: F34T12/WM | S17: 2650 | U17: =IF(P8=8,0.86, 0.94 ) -> 0.94 | V17: =IF(P8=8,0.74, 0.9 ) -> 0.9 | Y17: 8 | Z17: D
B18: 2350 | C18: 0.9 | D18: 4 | E18: =B18*C18*D18 -> 8460 | G18: =E18/$B$11 -> 1.081155686 | J18: B | K18: 0.88 | L18: 47 | M18: 66 | N18: 92 | P18: 139 | R18: =VLOOKUP(P8,Y8:Z17,2,0) -> A | S18: 3
B19: Selected LED Tube - 3 | D19: 18W Type A | J19: B | K19: 0.77 | L19: 43 | M19: 63 | N19: 85 | P19: 128
B20: 3200 | C20: 0.9 | D20: 2 | E20: =B20*C20*D20 -> 5760 | G20: =E20/$B$11 -> 0.7361059993 | J20: C | K20: 1.18 | L20: 60 | M20: 86 | N20: 116 | P20: 166
J21: C | K21: 0.88 | L21: 43 | M21: 65 | N21: 87 | P21: 130 | T21: K10:N12
J22: C | K22: 0.77 | L22: 40 | M22: 59 | N22: 77 | P22: 117 | T22: K13:N15
J23: D | L23: 74 | M23: 117 | N23: 148 | R23: =VLOOKUP(G5,K13:N17,E5:E58) ->  | T23: K16:N18
J24: D | L24: 74 | M24: 117 | N24: 148
J25: D | L25: 74 | M25: 117 | N25: 148 | R25: =INDEX(_F32,T8,E5) -> 110 | U25: _F32
J26: D | L26: 74 | M26: 117 | N26: 148 | R26: =INDEX(_F28,T8,E5) -> 92 | U26: _F28
R27: =INDEX(_F25,T8,E5) -> 87 | U27: _F25
R28: =INDEX(_F34,T8,E5) -> 148

Sheet Fixture_vs_Tube
B1: LFL / LED Tube vs. LED Fixture (Cost of Ownership)
B2: Green cells require user input
B3: Energy rate per kWh | C3: 0.07
B4: Burning hr. per yr. | C4: 8700
C5: LFL | D5: LED Fixture | E5: LED Tube A
B6: No. of fixtures | C6: 1500 | D6: 1500 | E6: 1500
B7: LED tube watts (nominal) | E7: 17.5
B8: Fixture Watts including driver watts | C8: 100 | D8: 45 | E8: 70
C9: LFL LAMP | D9: LED FIXTURE
B10: No. of lamps/fixture | C10: 4 | E10: 4
B11: Lamp Life | C11: 30000 | E11: 50000
B12: Lamp Cost | C12: 4 | E12: 8
B13: Lamp Replacement Labor (spot) | C13: 10 | E13: 5
B14: Lamp Replacement Labor (group) | C14: 5 | E14: 5
B15: Lamp Disposal Cost | C15: 1 | E15: 0
B16: BALLAST / DRIVER (Type C) | E16: 1
B17: No. of ballasts/fixture | C17: 1 | E17: 1
B18: Ballast / Driver (Type C) Life | C18: 60000 | E18: 60000
B19: Ballast / Driver Cost | C19: 20 | E19: 20
B20: Ballast / Driver Replacement Labor | C20: 25 | E20: 25
B21: Ballast / Driver Disposal Cost | C21: 1
B22: FIXTURE
B23: Fixture Life (Hours) | D23: 100000
B24: OR Fixture Life (Years) (estimated) | C24: 20 | D24: =D23/C4 -> 11.49425287 | E24: 20
B25: Fixture Cost (initial cost) | C25: 0 | D25: 160 | E25: =E12*E10 -> 32
B26: Labor to Install Fixture or lamps | C26: 0 | D26: 40 | E26: =E10*E13 -> 20
B27: Annualized Fixture Cost (per fixture) | C27: =(C25+C26)/C24 -> 0 | D27: =(D25+D26)/D24 -> 17.4 | E27: =(E25+E26)/E24 -> 2.6
B28: Annualized Fixture Cost (all fixtures) | C28: =C27*C6 -> 0 | D28: =D27*D6 -> 26100 | E28: =E27*E6 -> 3900
B29: Annualized Lamp cost | C29: =C53 -> 30014.9985 | D29: 0 | E29: 0
B30: Annualized Ballast Cost | C30: =C60 -> 9787.5 | D30: 0 | E30: =E60 -> 26100
B31: Annual Energy Cost | C31: =C6*C8*$C$4*$C$3/1000 -> 91350 | D31: =D6*D8*C4*C3/1000 -> 41107.5 | E31: =E6*E8*$C$4*$C$3/1000 -> 63945
B32: Total Annualized Cost (excluding A/C) | C32: =C28+C29+C30+C31 -> 131152.4985 | D32: =D31+D28 -> 67207.5 | E32: =E28+E29+E30+E31 -> 93945
B33: A/C Savings
B34: Percentage of time A/C is on | C34: 0.3
B35: Annual Energy Savings prior to A/C | D35: =$C$31-D31 -> 50242.5
B36: A/C Savings | D36: =(C34*0.34*0.9)*($C$31-D31) -> 4612.2615 | E36: =(C34*0.34*0.9)*($C$31-E31) -> 2515.779
B37: Annual Energy Savings including A/C | D37: =D35+D36 -> 54854.7615 | E37: =E35+E36 -> 2515.779
B38: Total Annualized Savings (including A/C) | D38: =$C$32-D32+D36 -> 68557.26 | E38: =$C$32-E32+E36 -> 39723.2775
B39: Total Savings over life of LED/LFL Fixtures | D39: =D37*D24 -> 630514.5 | E39: =E37*E24 -> 50315.58
B40: Supporting Data and Calculations
B41: LAMP AND LABOR COSTS
B42: No. of lamps at site | C42: =C6*C10 -> 6000 | E42: =E6*E10 -> 6000
B43: Group Relamping at (hours) | C43: =0.6666667*C11 -> 20000.001
B44: Group Relamping at (years) | C44: =C43/$C$4 -> 2.29885069
B45: Cost of Group Relamping (Lamps) | C45: =C12*(C42) -> 24000 | E45: =E12*(E42) -> 48000
B46: Disposal Cost of Lamps | C46: =C42*C15 -> 6000 | E46: =E42*E15 -> 0
B47: Cost of Group Relamping (Labor) | C47: =C14*C42 -> 30000 | E47: =E14*E42 -> 30000
B48: Assume Group Relamping at 2/3rds of lamp life; 10% of lamps replaced prior to group relamping | C48: Spot and Group relamping | E48: =IF(E16=1, "Spot and Group relamping",IF(E16=2, "Assume no Spot relamping, Group relamping only")) -> Spot and Group relamping
B49: Cost of lamps replaced prior to grp relamp | C49: =0.1*C42*C12 -> 2400 | E49: =IF(E16=1,0.1*E42*E12, IF(E16=2,0)) -> 4800
B50: Disposal Cost of Lamps prior to grp relamp | C50: =0.1*C42*C15 -> 600 | E50: =IF(E16=1,0.1*E42*E15, IF(E16=2,0)) -> 0
B51: Labor cost of lamps replaced prior to grp relamp | C51: =0.1*C42*C13 -> 6000 | E51: =IF(E16=1,0.1*E42*E13, IF(E16=2,0)) -> 3000
B52: Total Lamp Replacement/Maintenance Costs over one group relamping period | C52: =SUM(C45:C51) -> 69000 | E52: =SUM(E45:E51) -> 85800
B53: Long term Annualized Lamp cost | C53: =C52/C44 -> 30014.9985 | D53: ZERO | E53: =E52/E44 -> 
B54: BALLAST AND LABOR COSTS
B55: No. of ballasts at site | C55: =C6*C17 -> 1500 | E55: 4000
B56: Life of ballast (years) | C56: =C18/$C$4 -> 6.896551724 | E56: =E18/$C$4 -> 6.896551724
B57: Replacement ballast costs over life | C57: =C55*C19 -> 30000 | E57: =E55*E19 -> 80000
B58: Replacement ballast labor over life | C58: =C55*C20 -> 37500 | E58: =E55*E20 -> 100000
B59: Total Ballast Cost over life | C59: =C57+C58 -> 67500 | E59: =E57+E58 -> 180000
B60: Long term Annualized Ballast Cost | C60: =C59/C56 -> 9787.5 | E60: =E59/E56 -> 26100
B62: Annual Energy Costs | C62: =C31 -> 91350 | D62: =D31 -> 41107.5 | E62: =E31 -> 63945
B63: Annualized Fixture Costs | C63: =C28 -> 0 | D63: =D28 -> 26100 | E63: =E28 -> 3900
B64: Annualized Lamp Cost | C64: =C53 -> 30014.9985 | E64: =E53 -> 
B65: Annualized Ballast Cost | C65: =C60 -> 9787.5 | E65: =E60 -> 26100
B66: A/C Savings | C66: =D36 -> 4612.2615 | E66: =D36-E36 -> 2096.4825

Sheet Generic_Payback_Tool
C1: LED Payback Calculator | F1: Put your company logo here
C2: INSTRUCTIONS: (PLEASE READ!) This tool is used for any fixture upgrade, with flexibility in specifying both "from" and "to." Enter information in GREEN cells only; other cells are calculated values; do not write in them. Maintenance savings are projected assuming existing system has reached long-term (steady state.) Do not change any of the entries in the white and blue cells because this will destroy the formulas and calculations and ruing the spreadsheet.
F3: Opportunity Analysis: (insert name here) | G3: Date
C4: Select the lamp/fixture currently used in the space | F4: Your e-mail | G4: Your phone #
C5: Manufacturing Area | F5: Controls Savings (if included)
C6: Existing Lamp/Fixture Description | D6: MVR400 | F6: Effect of Occupacy Sensor Controls
C7: # Fixtures | D7: 240 | F7: Effect of Dimming Controls
C8: Fixture Watts, Existing | D8: 460 | F8: Cost of adding controls ($ per fixture) | G8: 32
C9: Burn hr. annual | D9: 6500 | F9: If Occ. sensors, burn hours reduced to (%) | G9: 0.7
C10: Energy Rate $ per kWh | D10: 0.1 | F10: If dimming, effective wattage reduced to (%) | G10: 0.6
C11: Annual Energy Use (Existing) | D11: =D7*D8*D9*D10/1000 -> 71760 | F11: Energy Consumption reduced to (% of full) | G11: =G9*G10 -> 0.42
C12: Proposed Fixture Description | D12: ABV3 | F12: Maintenance Savings Calculation
C13: Part# (optional) | F13: Maintenance Savings
C14: LED Fixture Rated Life (hr.) | D14: 50000 | F14: Existing Lamp/Fixture Description | G14: =D6 -> MVR400
C15: LED Fixture Rated Life (years) | D15: =D14/D9 -> 7.692307692 | F15: # Fixtures | G15: =D7 -> 240
C16: LED Fixture Watts | D16: 89 | F16: # lamps per fixture | G16: 1
C17: Effective Wattage with Controls | D17: =IF(E32=TRUE,D16*G10, D16) -> 89 | F17: # ballasts per fixture (please correct if not 1) | G17: 1 | J17: 8 | K17: =IF(K16=$D$34,0,IF(K16=0,0,IF(K16+$D$22<$D$34,K16+$D$22,$D$34))) -> 0
C18: Annual Burn hr. (including controls) | D18: =IF(E31=TRUE,D9*G9, D9) -> 6500 | F18: Annual Burn hr. | G18: =D9 -> 6500 | J18: 9 | K18: =IF(K17=$D$34,0,IF(K17=0,0,IF(K17+$D$22<$D$34,K17+$D$22,$D$34))) -> 0
C19: Annual Energy Use (for proposed) | D19: =D7*D17*D18*D10/1000 -> 13884 | F19: Lamp Life Hours (estimate) | G19: 20000 | J19: 10 | K19: =IF(K18=$D$34,0,IF(K18=0,0,IF(K18+$D$22<$D$34,K18+$D$22,$D$34))) -> 0
C20: Energy Savings | D20: =D11-D19 -> 57876 | F20: Ballast Life Hours (estimate) | G20: 80000
C21: Maintenance Savings (estimated) | D21: =IF(E21=2,0,G30) -> 11017.5 | E21: 1 | F21: Cost per lamp | G21: 25
C22: Total Annual Savings | D22: =D20+D21 -> 68893.5 | F22: Cost per ballast | G22: 65
C23: Cost of Proposed Fixture | D23: 340 | F23: Labor to replace one lamp | G23: 25
C24: Labor to Install per fixture | D24: 50 | F24: Labor to replace one ballast | G24: 50
C25: Additional Cost of controls (per fixture) | D25: =IF(E31=TRUE, G8,(IF(E32=TRUE,G8,0))) -> 0 | F25: Disposal Cost per lamp | G25: 0
C26: Rebate per fixture (put in brackets) | D26: -100 | F26: Disposal Cost per ballast | G26: 0
C27: Total Investment Required | D27: =D7*(D23+D24+D25+D26) -> 69600 | F27: Disruption cost per event (lamp/ballast out) | G27: 50
C28: Summary of Benefits | F28: Annual Maintenance cost of lamps | G28: =(G18/G19)*G15*G16*(G21+G23+G25+G27) -> 7800
C29: Investment per fixture to upgrade | D29: =SUM(D23:D26) -> 290 | F29: Annual Maintenance cost of ballasts | G29: =(G18/G20)*G15*G17*(G22+G24+G26+G27) -> 3217.5
C30: Annual savings per fixture | D30: =D22/D7 -> 287.05625 | F30: TOTAL Annual Maintenance Cost (est.) | G30: =G28+G29 -> 11017.5
C31: Net cash generated by each fixture over life | D31: =D30*D15-D29 -> 1918.125 | E31: FALSE | F31: Environmental Impact (USA, 2017 numbers)
C32: Simple ROI | D32: =D22/D27 -> 0.9898491379 | E32: FALSE | F32: kWh saved per year | G32: =D7*(D8*D9-D17*D18)/1000 -> 578760
C33: Payback (months) | D33: =12*D27/D22 -> 12.1230595 | F33: Metric tons CO2 emission reduced per year | G33: =G32*G39 -> 406.86828
C34: Net Positive Cash by end of fixture life | D34: =D22*D15-D27 -> 460350 | F34: lb. coal burning avoided per year | G34: =G33/G40 -> 434224.4184
C35: Cost of Waiting (doing nothing) | F35: Metric tons coal burning avoided per year | G35: =G34/2205 -> 196.9271739
C36: Cost of waiting per year | D36: =D22 -> 68893.5 | F36: Equivalent gallons of gasoline burning avoided | G36: =G33/G41 -> 45766.96063
C37: Cost of waiting each month | D37: =D36/12 -> 5741.125 | F37: Equivalent acres of forest added | G37: =G33/G42 -> 383.838
C38: Cost of waiting = energy/maintenance spending that could be avoided by upgrading | F38: DOE Numbers for the US (2017) generating these calculations
C39: Net Present Value (NPV) Calculation | F39: CO2 Emission factor (metric tons CO2 per kWh generated) | G39: 0.000703
C40: Discount rate for NPV calculation | D40: 0.05 | F40: CO2 released metric tons. per per lb. of coal burned | G40: 0.000937
C41: Net Present Value of Project (NPV) 5 years | D41: =NPV(D40,D22,D22,D22,D22,D22)-D27 -> 228672.801 | F41: metric tons CO2 released per gallon of gasoline burned | G41: 0.00889
C42: Net Present Value of Project (NPV) 10 years | D42: =NPV(D40,D22,D22,D22,D22,D22,D22,D22,D22,D22,D22)-D27 -> 462377.3453 | F42: CO2 sequestration metric ton.per acre of forest per year | G42: 1.06
C43: NPV calculation assumes steady stream of savings over period. In practice, end-user may replace the fixture earlier due to lumen depreciation and incur an additional cost. | F43: Link to EPA GHG Equivalencies Calculator (2017)

Sheet Generic_2-Option
C1: LED 2-Option Comparison Payback Calculator | G1: Put your company logo here
C2: INSTRUCTIONS: (PLEASE READ!) This tool allows you to compare two different options for an energy-saving upgrade. Enter information in GREEN cells only; other cells are calculated values and these cells are protected. Maintenance savings are projected assuming the existing legacy system has reached long-term steady state and that lamps and ballasts are replaced as soon as they fail. You have the option of including or excluding projected maintenance savings with your calculations by checking the radio button, also the option of including or excluding dimming and occ sensor impact.
G3: Opportunity Analysis prepared for SIMCO Industries | H3: Date
C4: Area Name | G4: Your e-mail | H4: Your phone #
C5: Existing Lamp/Fixture Description | D5: DH 445 | G5: Addition of Controls
C6: # Fixtures | D6: 240 | G6: Effect of Occupacy Sensor Controls
C7: Fixture Watts, Existing | D7: 180 | G7: Effect of Dimming Controls | L7: T | M7: H
C8: Burn hr. annual | D8: 6500 | G8: Cost of adding controls ($ per fixture) | H8: 32 | K8: Year | L8: $
C9: Energy Rate $ per kWh | D9: 0.11 | G9: If Occ. sensors, burn hours reduced to (%) | H9: 0.7 | K9: 0 | L9: =-D27 -> -36000 | M9: =-E27 -> -45600
C10: Annual Energy Use (Existing) | D10: =D6*D7*D8*D9/1000 -> 30888 | G10: If dimming, effective wattage reduced to (%) | H10: 0.6 | K10: 1 | L10: =IF(L9+$D$22>$D$35,0,(L9+$D$22)) -> -23816.4 | M10: =IF(M9+$E$22>$E$35,0,(M9+$E$22)) -> -29812.8
C11: Proposed Fixture Description | D11: Option 1 | E11: Option 2 | G11: Energy Consumption reduced to (% of full) | H11: =H9*H10 -> 0.42 | K11: 2 | L11: =IF(L10=$D$35,0,IF(L10=0,0,IF(L10+$D$22<$D$35,L10+$D$22,$D$35))) -> -11632.8 | M11: =IF(M10+$E$22>$E$35,0,(M10+$E$22)) -> -14025.6
G12: Maintenance Savings Calculation | K12: 3 | L12: 550.8 | M12: 1761.6
C13: Part Number (if you wish to specify) | G13: Maintenance Savings | K13: 4 | L13: 12734.4 | M13: 17548.8
C14: LED Fixture Rated Life (hr.) | D14: 100000 | G14: Existing Lamp/Fixture Description | H14: =D5 -> DH 445 | K14: 5 | L14: 24918 | M14: 33336
C15: LED Fixture Rated Life (years) | D15: =D14/D18 -> 15.38461538 | G15: # Fixtures | H15: =D6 -> 240 | K15: 6 | L15: 37101.6 | M15: 49123.2
C16: LED Fixture Watts | D16: 109 | E16: 88 | G16: # lamps per fixture | H16: 1 | K16: 7 | L16: 49285.2 | M16: 64910.4
C17: Effective Wattage with Controls | D17: =IF(F32=TRUE,D16*H10, D16) -> 109 | E17: =IF(F32=TRUE,E16*H10, E16) -> 88 | G17: # ballasts per fixture (please correct if not 1) | H17: 1 | K17: 8 | L17: 61468.8 | M17: 80697.6
C18: Annual Burn hr. (including controls) | D18: =IF(F31=TRUE,D8*H9, D8) -> 6500 | G18: Annual Burn hr. | H18: =D8 -> 6500 | K18: 9 | L18: 73652.4 | M18: 96484.8
C19: Annual Energy Use (for proposed) | D19: =D6*D17*D18*D9/1000 -> 18704.4 | E19: =D6*E17*D18*D9/1000 -> 15100.8 | G19: Lamp Life (best guess) | H19: 30000 | K19: 10 | L19: 85836 | M19: 112272
C20: Energy Savings | D20: =D10-D19 -> 12183.6 | E20: =D10-E19 -> 15787.2 | G20: Ballast Life (best guess) | H20: 80000
C21: Maintenance Savings (estimated) | D21: =IF(F21=2,0,H30) -> 0 | F21: 2 | G21: Cost per lamp | H21: 25
C22: Total Annual Savings | D22: =D20+D21 -> 12183.6 | E22: =E20+D21 -> 15787.2 | G22: Cost per ballast | H22: 65
C23: Cost of Proposed Fixture | D23: 200 | E23: 240 | G23: Labor to replace one lamp | H23: 25
C24: Labor to Install per fixture | D24: 50 | E24: 50 | G24: Labor to replace one ballast | H24: 50
C25: Additional Cost of controls (per fixture) | D25: =IF(F31=TRUE, H8,(IF(F32=TRUE,H8,0))) -> 0 | G25: Disposal Cost per lamp | H25: 0
C26: Rebate per fixture (put in brackets) | D26: -100 | E26: -100 | G26: Disposal Cost per ballast | H26: 0
C27: Total Investment Required | D27: =D6*(D23+D24+D25+D26) -> 36000 | E27: =D6*(E23+E24+E25+E26) -> 45600 | G27: Disruption cost per event (lamp/ballast out) | H27: 50
C28: Summary of Benefits | G28: Annual Maintenance cost of lamps | H28: =(H18/H19)*H15*H16*(H21+H23+H25+H27) -> 5200
C29: Investment per fixture to upgrade | D29: =SUM(D23:D26) -> 150 | E29: =SUM(E23:E26) -> 190 | G29: Annual Maintenance cost of ballasts | H29: =(H18/H20)*H15*H17*(H22+H24+H26+H27) -> 3217.5
C30: Annual savings per fixture | D30: =D22/D6 -> 50.765 | E30: =E22/D6 -> 65.78 | G30: TOTAL Annual Maintenance Cost (est.) | H30: =H28+H29 -> 8417.5
C31: Net Energy Savings per fixture over life | D31: =D20*D15/D6 -> 781 | E31: =E20*D15/D6 -> 1012 | F31: FALSE | G31: Environmental Impact (USA, 2017 numbers)
C32: Net cash generated by each fixture over life | D32: =D30*D15-D29 -> 631 | E32: =E30*D15-E29 -> 822 | F32: FALSE | G32: kWh saved per year Std. "T" fixture | H32: =D6*(D7*D8-D17*D18)/1000 -> 110760
C33: Simple ROI | D33: =D22/D27 -> 0.3384333333 | E33: =E22/E27 -> 0.3462105263 | G33: Metric tons CO2 emission reduced per year | H33: =H32*H39 -> 77.86428
C34: Payback (months) | D34: =12*D27/D22 -> 35.45750025 | E34: =12*E27/E22 -> 34.66099118 | G34: lb. coal burning avoided per year | H34: =H33/H40 -> 83099.55176
C35: Net Positive Cash by end of fixture life | D35: =D22*D15-D27 -> 151440 | E35: =E22*D15-E27 -> 197280 | G35: Metric tons coal burning avoided per year | H35: =H34/2205 -> 37.68687155
C36: Cost of Waiting (doing nothing) | G36: Equivalent gallons of gasoline burning avoided | H36: =H33/H41 -> 8758.63667
C37: Cost of waiting per year | D37: =D22 -> 12183.6 | E37: =E22 -> 15787.2 | G37: Equivalent acres of forest added | H37: =H33/H42 -> 73.45686792
C38: Cost of waiting each month | D38: =D37/12 -> 1015.3 | E38: =E37/12 -> 1315.6 | G38: DOE Numbers for the US (2017) generating these calculations
C39: Cost of waiting = energy/maintenance spending that could be avoided by upgrading | G39: CO2 Emission factor (metric tons CO2 per kWh generated) | H39: 0.000703
C40: Net Present Value (NPV) Calculation | G40: CO2 released metric tons. per per lb. of coal burned | H40: 0.000937
C41: Discount rate for NPV calculation | D41: 0.05 | G41: metric tons CO2 released per gallon of gasoline burned | H41: 0.00889
C42: Net Present Value of Project (NPV) 5 years | D42: =NPV(D41,D22,D22,D22,D22,D22)-D27 -> 16748.61196 | E42: =NPV(D41,E22,E22,E22,E22,E22)-E27 -> 22750.31409 | G42: CO2 sequestration metric ton.per acre of forest per year | H42: 1.06
C43: Net Present Value of Project (NPV) 10 years | D43: =NPV(D41,D22,D22,D22,D22,D22,D22,D22,D22,D22,D22)-D27 -> 58078.52968 | E43: =NPV(D41,E22,E22,E22,E22,E22,E22,E22,E22,E22,E22)-E27 -> 76304.57367 | G43: Link to EPA GHG Equivalencies Calculator (2017)
C44: NPV calculation assumes steady stream of savings over period. In practice, end-user may replace the fixture earlier due to lumen depreciation and incur an additional cost.

Sheet Multiple_Systems
D2: Multiple Systems Energy Estimator
B3: Calculate the energy costs associated with existing and proposed lighting systems and (optional) show environmental impact.Click on the first green cell and tab to the other input cells.
B4: You can increase the # rows to accommodate more systems by right-clicking > insert on the row number | G4: Energy Rate ($ per kWh) | J4: 0.09
B5: Existing Systems | G5: Proposed System
B6: Existing Systems | C6: Fixture count | D6: Watts/Fixture | E6: Hr burn per year | F6: Energy $ per yr. | G6: Proposed Systems | H6: Fixture count | I6: Watts/Fixture | J6: Hr burn per year | K6: Energy $ per yr.
B7: 60PAR/HIR/S/FL | C7: 84 | D7: 60 | E7: 3224 | F7: =IF(C7*D7*E7=0,"",C7*D7*E7*$J$4/1000) -> 1462.4064 | G7: LEDPAR30 10W | H7: 84 | I7: 10 | J7: 3224 | K7: =IF(H7*I7*J7=0,"",H7*I7*J7*$J$4/1000) -> 243.7344
B8: F28T8 3 lamp | C8: 80 | D8: 73 | E8: 4000 | F8: 2102.4 | G8: LED Type A Tube | H8: 80 | I8: 51 | J8: 4000 | K8: 1468.8
B9: 50PAR30/H | C9: 56 | D9: 50 | E9: 3100 | F9: 781.2 | G9: LEDPAR30 10W | H9: 56 | I9: 10 | J9: 3100 | K9: 156.24
B15: Energy used per yr. (Existing System) | F15: =SUM(F7:F14) -> 4346.0064 | G15: Energy used per yr. (Proposed System) | K15: =SUM(K7:K14) -> 1868.7744
B16: Electrical Load (kilo-watts) (Existing System) | F16: =(C7*D7+C8*D8+C9*D9+C10*D10+C11*D11+C12*D12+C13*D13+C14*D14)/1000 -> 13.68 | G16: Electrical Load (kilo-watts) (Proposed System) | K16: =(H7*I7+H8*I8+H9*I9+H10*I10+H11*I11+H12*I12+H13*I13+H14*I14)/1000 -> 5.48
B17: Potential Energy Savings per year | G17: =F15-K15 -> 2477.232 | H17: kilo-Watt load reduction | K17: =F16-K16 -> 8.2
B18: Estimated total cost for complete upgrade | G18: 6500 | H18: Simple Payback (based on energy savings alone) | K18: =IF(G18="","",(ROUNDUP((G18*12/G17),0))) -> 32
B19: Cost of Waiting (Cost of postponing the Lighting Upgrade) | G19: =G17/12 -> 206.436 | H19: or | I19: =G17 -> 2477.232
G20: per month | I20: per year
B21: Environmental Impact of Lighting Upgrade Changing your lights can benefit the environment!
B22: Annual Carbon Dioxide emission reduction | C22: =C29*$G$17/J4 -> 42663.44 | E22: Coal burning avoided | G22: =C22/G29 -> 20610.35749 | H22: Equivalent acres of forest added | K22: =C22/K29 -> 18.25564399
C23: lbs. | G23: lbs. Or | K23: acres
C24: =C22/2205 -> 19.34849887 | G24: =IF(G22/2200<1,"Less than 1",G22/2200) -> 9.368344313 | H24: Equivalent urban trees added | K24: =C22/K30 -> 496.0865116
C25: metric tons | G25: metric tons | K25: trees
B26: Numbers below based on EPA GHG Equivalencies Calculator (2017) | G26: Click to open | H26: Equivalent # cars removed from the road | K26: =C22/G30 -> 4.091238972
K27: cars
B28: Emission Factors: gases released per kWh of electricity generated (EPA 2007) | D28: Carbon dioxide released per lb. of coal burned (EPA 2007) (can vary based on type of coal) | H28: Annual carbon dioxide (lbs.) sequestration by forest and emission by cars (EPA 2007)
B29: lbs. of CO2 released | C29: 1.55 | D29: lbs. of CO2 generated | G29: 2.07 | H29: CO2 sequestration per acre | K29: 2337
D30: CO2 emission per average car | G30: 10428 | H30: CO2 sequestration per urban tree per year | K30: 86
B31: Customer: | C31: Bo Peep Industries | H31: =TODAY() -> 2021-03-17
B32: Prepared by:

Sheet Simple_Layouts
B1: Simple Lighting Layout Estimators
B2: These estimators provides a rough lighting layout for industrial (high ceiling area) or office (low ceiling area) assuming typical surface reflectances on walls and ceilings. More accurate layouts can be done with the indoor design tool link available on the web page for the chosen fixture, or by using a commercial lighting layout program.
D4: 1
B5: Area to be lit (sq. ft.) | C5: 160000
B6: (1) FIXTURE QUANTITY ESTIMATOR
B7: # fixtures needed to achieve desired footcandles
B8: Footcandles desired (initial) | C8: 50
B9: Initial lumens of selected fixture | C9: 18000
B10: Number of fixtures needed (approx.) | C10: =(C5*C8)/(C9*C27) -> 444.999826
B11: Fixture spacing (approx. ft., square grid) | C11: =(C5/C10)^0.5 -> 18.96182223
B13: (2) FIXTURE LUMEN REQUIREMENT ESTIMATOR
B14: Fixture lumens required to provide desired footcandles
B15: Preferred fixture spacing (length and width)
B16: Length (ft.) | C16: 18
B17: Width (ft.) | C17: 20
B18: Footcandles desired (initial) | C18: 50
B19: Approx. initial lumens needed for fixture to provide required light level initially | C19: =(C16*C17*C18)/(C27) -> 18022.49295
B20: (3) FOOTCANDLE ESTIMATOR
B21: Footcandles generated by a certain number of fixtures
B22: Number of fixtures | C22: 40
B23: Initial lumens of selected fixture | C23: 18000
B24: Approximate average footcandles | C24: =C23*C22*C27/C5 -> 4.49438378
B25: METHOD: Based on the size of the room and assuming normal reflectances, the tool estimates a certain Fixure Coefficient of Utilization (FCU) which is the fraction of the fixture lumens that will reach the workplane (ball park figure.)
B27: With the dimension specified here, the estimated FCU is | C27: =0.6+0.4*EXP(-500*D4^4/C5) -> 0.9987519511

Sheet Energy_Rates
B2: Energy Rates By Region and State
B4: Electric rates (in cents per kWh) listed separately by State for commercial markets and for industrial markets. Source: US Energy Information Administration (EIA) report of July 2018 | F4: Region/State | G4: Commercial | H4: Industrial | J4: Region/State | K4: Commercial | L4: Industrial
F5: West North Central | G5: 10.01 | H5: 7.28 | J5: West South Central | K5: 8.15 | L5: 5.41
F6: Iowa | G6: 9.68 | H6: 5.7 | J6: Arkansas | K6: 7.54 | L6: 5.23
F7: Kansas | G7: 10.39 | H7: 7.92 | J7: Louisiana | K7: 8.65 | L7: 5.15
F8: Minnesota | G8: 10.6 | H8: 8 | J8: Oklahoma | K8: 7.52 | L8: 5.14
F9: Missouri | G9: 10.05 | H9: 7.55 | J9: Texas | K9: 8.23 | L9: 5.57
B10: Region/State | C10: Commercial | D10: Industrial | F10: Nebraska | G10: 9 | H10: 7.33 | J10: Mountain | K10: 9.92 | L10: 6.44
B11: New England | C11: 15.89 | D11: 12.61 | F11: North Dakota | G11: 9.2 | H11: 8.47 | J11: Arizona | K11: 11.32 | L11: 6.89
B12: Connecticut | C12: 16.55 | D12: 12.59 | F12: South Dakota | G12: 9.41 | H12: 7.66 | J12: Colorado | K12: 10.09 | L12: 7.24
B13: Maine | C13: 12.18 | D13: 8.94 | F13: South Atlantic | G13: 9.24 | H13: 6.26 | J13: Idaho | K13: 8.16 | L13: 6.95
B14: Massachusetts | C14: 16.13 | D14: 14.3 | F14: Delaware | G14: 9.6 | H14: 7.08 | J14: Montana | K14: 10.33 | L14: 4.72
B15: New Hampshire | C15: 16.36 | D15: 13.53 | F15: District of Columbia | G15: 11.6 | H15: 7.99 | J15: Nevada | K15: 7.8 | L15: 5.37
B16: Rhode Island | C16: 15.61 | D16: 14.54 | F16: Florida | G16: 9.29 | H16: 7.6 | J16: New Mexico | K16: 9.69 | L16: 5.62
B17: Vermont | C17: 15.29 | D17: 10.21 | F17: Georgia | G17: 9.62 | H17: 5.54 | J17: Utah | K17: 9.11 | L17: 6.13
B18: Middle Atlantic | C18: 12.04 | D18: 6.88 | F18: Maryland | G18: 10.3 | H18: 8.15 | J18: Wyoming | K18: 9.96 | L18: 6.95
B19: New Jersey | C19: 12.24 | D19: 9.62 | F19: North Carolina | G19: 8.33 | H19: 5.77 | J19: Pacific Contiguous | K19: 13.64 | L19: 9.29
B20: New York | C20: 13.71 | D20: 6.54 | F20: South Carolina | G20: 10.09 | H20: 5.89 | J20: California | K20: 15.6 | L20: 12.64
B21: Pennsylvania | C21: 9.02 | D21: 6.59 | F21: Virginia | G21: 8.33 | H21: 6.85 | J21: Oregon | K21: 9.07 | L21: 6.06
B22: East North Central | C22: 10.2 | D22: 6.94 | F22: West Virginia | G22: 9.59 | H22: 6.63 | J22: Washington | K22: 8.62 | L22: 4.37
B23: Illinois | C23: 8.84 | D23: 6.45 | F23: East South Central | G23: 10.41 | H23: 5.91 | J23: Pacific Noncontiguous | K23: 24.55 | L23: 23.45
B24: Indiana | C24: 10.2 | D24: 7.06 | F24: Alabama | G24: 11.23 | H24: 6.24 | J24: Alaska | K24: 18.9 | L24: 17.51
B25: Michigan | C25: 11.45 | D25: 7.29 | F25: Kentucky | G25: 9.49 | H25: 5.62 | J25: Hawaii | K25: 29.35 | L25: 25.7
B26: Ohio | C26: 10.09 | D26: 6.66 | F26: Mississippi | G26: 10.83 | H26: 6.02
B27: Wisconsin | C27: 11.3 | D27: 7.71 | F27: Tennessee | G27: 10.22 | H27: 5.63 | J27: U.S. Total | K27: 10.51 | L27: 6.82

Sheet Environmental
C2: Environmental Impact Estimator 2017 (USA)
E5: Opportunity Analysis prepared for SIMCO Industries | H5: 2017-06-20
H6: =[8]HOME!C5 -> 440 555 1212
B7: Direct Entry of kWh saved per year | F7: Calculation of kWh saved per year
B8: kWh saved per year | E8: 569250 | F8: No. of Fixtures | I8: 500
B9: (or delete this cell to use the calculated number on the right) | F9: Watts saved per fixture | I9: =465-126 -> 339
F10: Burning Hours per year | I10: 4000
B11: If you are using this number, please delete the green cells on the right so there is no confusion about which number is being used in the calculation. | F11: =IF(E8<>"","Delete Green Cell on the left if you wish to use this calculated number","kWH saved per year (calculated)") -> Delete Green Cell on the left if you wish to use this calculated number | I11: =IF(E8="",I8*I9*I10/1000,"") -> 
B14: ENVIRONMENTAL IMPACT (2017 numbers for US)
B15: Carbon Dioxide emission reduction | F15: =IF((E8=""),I11*E23,E8*E23) -> 882337.5 | G15: lb. CO2 per year
F16: =F15/2205 -> 400.1530612 | G16: metric tons CO2 per year
B17: Coal Burning Avoided | F17: =F15/(E24) -> 426250 | G17: lb. per year
F18: =F17/2205 -> 193.3106576 | G18: metric tons per year
B19: Equivalent forestation | F19: =F15/I23 -> 377.5513479 | G19: acres of forest added
B20: Equivalent urban trees | F20: =F15/I24 -> 10259.73837 | G20: trees planted and grown to full
B21: Equivalent # cars removed from the road | F21: =F15/E25 -> 84.61234177 | G21: cars removed from the road
B22: Numbers below based on EPA GHG Equivalencies Calculator (2020) | I22: Click to open
B23: CO2 Emission factor lb. CO2 per kWh generated | E23: 1.55 | F23: CO2 sequestration lb.per acre of forest per year | I23: 2337
B24: CO2 released lb. per per lb. of coal burned | E24: 2.07 | F24: CO2 sequestration lb.per urban tree per year | I24: 86
B25: Average CO2 emission lb. per passenger car per year | E25: 10428 | F25: NOTE: These numbers are representative. They vary based on type of coal burned, kind of forest considered, size of car and percent of energy coming from coal burning.

Sheet AC_Savings
C2: A/C Savings Estimator
B3: This tool estimates the additional savings resulting from A/C load reduction in air-conditioned spaces when an energy-efficient lighting upgrade is carried out. | J3: State | K3: City | N3: Coolng Wk | O3: Fraction | P3: Fraction*.9
B4: Conversion or EER rating to COP EER = Energy Efficiency Rating; SEER = Seasonal EER (averaged over seasons) | D4: EER Rating | E4: COP | H4: Alabama | J4: Alabama | K4: Birmingham | L4: Alamogordo | M4: New_Mexico | N4: 33 | O4: =N4/52 -> 0.6346153846 | P4: =O4*0.9 -> 0.5711538462 | Q4: =P4/$D$6 -> 0.1665171563
D5: 11.7 | E5: =D5/3.41 -> 3.431085044 | H5: Arizona | K5: Montgomery | L5: Albany | M5: New_York | N5: 20 | O5: 0.3846153846 | P5: 0.3461538462 | Q5: 0.1009194887
B6: COP value of A/C System | D6: 3.43 | E6: Help | H6: Arkansas | K6: Huntsville | L6: Albuquerque | M6: New_Mexico | N6: 27 | O6: 0.5192307692 | P6: 0.4673076923 | Q6: 0.1362413097
B7: (COP = Coefficient of Performance) | D7: If in doubt, use 3.43 (conservative) | H7: California | K7: Mobile | L7: Alexandria | M7: Louisana | N7: 37 | O7: 0.7115384615 | P7: 0.6403846154 | Q7: 0.186701054
B8: Select Location of Site (Use Drop-Down arrows that appear when you enter Green Cells) | H8: Colorado | J8: Arizona | K8: Tuscon | L8: Altus | M8: Oklahoma | N8: 31 | O8: 0.5961538462 | P8: 0.5365384615 | Q8: 0.1564252074
B9: State | C9: City | D9: Cooling Weeks | E9: A/C savings Multiplier | H9: DC | K9: Flagstaff | L9: Amarillo | M9: Texas | N9: 28 | O9: 0.5384615385 | P9: 0.4846153846 | Q9: 0.1412872841
B10: Delaware | C10: San Diego | D10: =LOOKUP(C10,Cities,N4:N156) -> 30 | E10: =LOOKUP(C10,Cities,Q4:Q156) -> 0.151379233 | H10: Delaware | K10: Phoenix | L10: Atlanta | M10: Georgia | N10: 30 | O10: 0.5769230769 | P10: 0.5192307692 | Q10: 0.151379233
B11: Energy Calculations | H11: Florida | J11: Arkansas | K11: Blytheville | L11: Augusta | M11: Georgia | N11: 35 | O11: 0.6730769231 | P11: 0.6057692308 | Q11: 0.1766091052
B12: Burning hr. /yr. | C12: 5000 | D12: Energy Rate $/kwWh | E12: 0.1 | H12: Georgia | K12: Little Rock | L12: Barstow | M12: California | N12: 32 | O12: 0.6153846154 | P12: 0.5538461538 | Q12: 0.1614711819
C13: Existing | D13: Proposed | H13: Idaho | K13: Fort Smith | L13: Billings | M13: Montana | N13: 18 | O13: 0.3461538462 | P13: 0.3115384615 | Q13: 0.09082753981
B14: # fixtures | C14: 200 | D14: 200 | H14: Illinois | J14: California | K14: Los Angeles | L14: Biloxi | M14: Mississippi | N14: 38 | O14: 0.7307692308 | P14: 0.6576923077 | Q14: 0.1917470285
B15: Watts per fixture | C15: 100 | D15: 26 | H15: Indiana | K15: San Diego | L15: Birmingham | M15: Alabama | N15: 33 | O15: 0.6346153846 | P15: 0.5711538462 | Q15: 0.1665171563
B16: kWh each year | C16: =C14*C15*$C$12/1000 -> 100000 | D16: =D14*D15*$C$12/1000 -> 26000 | H16: Iowa | K16: Santa Barbara | L16: Bishop | M16: California | N16: 30 | O16: 0.5769230769 | P16: 0.5192307692 | Q16: 0.151379233
B17: Annual Energy Cost | C17: =C16*$E$12 -> 10000 | D17: =D16*$E$12 -> 2600 | H17: Kansas | K17: Bishop | L17: Bismarck | M17: North_Dakota | N17: 18 | O17: 0.3461538462 | P17: 0.3115384615 | Q17: 0.09082753981
B18: Savings Calculations | D18: kWh | E18: Dollars | H18: Kentucky | K18: Barstow | L18: Blytheville | M18: Arkansas | N18: 30 | O18: 0.5769230769 | P18: 0.5192307692 | Q18: 0.151379233
B19: Energy Savings (lighting only) | D19: =C16-D16 -> 74000 | E19: =C17-D17 -> 7400 | H19: Louisana | K19: San Francisco | L19: Boise | M19: Idaho | N19: 20 | O19: 0.3846153846 | P19: 0.3461538462 | Q19: 0.1009194887
B20: Energy Savings with A/C | D20: =D19*(1+E10) -> 85202.06324 | E20: =E19*(1+E10) -> 8520.206324 | H20: Maine | K20: Sacramanto | L20: Boston | M20: Massachusetts | N20: 20 | O20: 0.3846153846 | P20: 0.3461538462 | Q20: 0.1009194887
H21: Massachusetts | J21: Colorado | K21: Denver | L21: Buffalo | M21: New_York | N21: 19 | O21: 0.3653846154 | P21: 0.3288461538 | Q21: 0.09587351424
H22: Michigan | K22: Colorado Springs | L22: Burlington | M22: Vermont | N22: 17 | O22: 0.3269230769 | P22: 0.2942307692 | Q22: 0.08578156537
H23: Minnesota | K23: Trinidad | L23: Burns | M23: Oregon | N23: 17 | O23: 0.3269230769 | P23: 0.2942307692 | Q23: 0.08578156537
H24: Mississippi | K24: Grand Junction | L24: Casper | M24: Wyoming | N24: 19 | O24: 0.3653846154 | P24: 0.3288461538 | Q24: 0.09587351424
H25: Missouri | J25: DC | K25: Washington, DC | L25: Champaign | M25: Illinois | N25: 24 | O25: 0.4615384615 | P25: 0.4153846154 | Q25: 0.1211033864
H26: Montana | J26: Delaware | K26: Dover | L26: Charleston, SC | M26: South_Carolina | N26: 36 | O26: 0.6923076923 | P26: 0.6230769231 | Q26: 0.1816550796
B27: Mouseover Here | C27: to understand how this A/C savings calculation is carried out | H27: Nebraska | K27: Wilmington, DE | L27: Charleston, WV | M27: West_Virginia | N27: 26 | O27: 0.5 | P27: 0.45 | Q27: 0.1311953353
H28: Nevada | J28: Florida | K28: Pensacola | L28: Cheyenne | M28: Wyoming | N28: 18 | O28: 0.3461538462 | P28: 0.3115384615 | Q28: 0.09082753981
B29: Customer: | C29: Perls Commerce Center | E29: =TODAY() -> 2021-03-17 | H29: New_Hampshire | K29: Miami | L29: Chicago | M29: Illinois | N29: 21 | O29: 0.4038461538 | P29: 0.3634615385 | Q29: 0.1059654631
B30: Prepared by: | H30: New_Jersey | K30: Jacksonville | L30: Cincinnati | M30: Ohio | N30: 24 | O30: 0.4615384615 | P30: 0.4153846154 | Q30: 0.1211033864
H31: New_Mexico | K31: Orlando | L31: Clarksburg | M31: West_Virginia | N31: 23 | O31: 0.4423076923 | P31: 0.3980769231 | Q31: 0.116057412
H32: New_York | K32: Tampa | L32: Cleveland | M32: Ohio | N32: 21 | O32: 0.4038461538 | P32: 0.3634615385 | Q32: 0.1059654631
H33: North_Carolina | J33: Georgia | K33: Atlanta | L33: Clovis | M33: New_Mexico | N33: 29 | O33: 0.5576923077 | P33: 0.5019230769 | Q33: 0.1463332586
H34: North_Dakota | K34: Augusta | L34: Colorado Springs | M34: Colorado | N34: 22 | O34: 0.4230769231 | P34: 0.3807692308 | Q34: 0.1110114375
H35: Ohio | K35: Macon | L35: Columbia, MO | M35: Missouri | N35: 26 | O35: 0.5 | P35: 0.45 | Q35: 0.1311953353
H36: Oklahoma | K36: Valdosta | L36: Columbia, SC | M36: South_Carolina | N36: 33 | O36: 0.6346153846 | P36: 0.5711538462 | Q36: 0.1665171563
H37: Oregon | K37: Savannah | L37: Columbus, MS | M37: Mississippi | N37: 34 | O37: 0.6538461538 | P37: 0.5884615385 | Q37: 0.1715631307
H38: Pennsylvania | J38: Idaho | K38: Boise | L38: Columbus, OH | M38: Ohio | N38: 24 | O38: 0.4615384615 | P38: 0.4153846154 | Q38: 0.1211033864
H39: Rhode_Island | K39: Pocatello | L39: Corpus Christi | M39: Texas | N39: 43 | O39: 0.8269230769 | P39: 0.7442307692 | Q39: 0.2169769007
H40: South_Carolina | K40: Lewiston | L40: Council Bluffs | M40: Iowa | N40: 23 | O40: 0.4423076923 | P40: 0.3980769231 | Q40: 0.116057412
H41: South_Dakota | J41: Illinois | K41: Chicago | L41: Covington | M41: Kentucky | N41: 24 | O41: 0.4615384615 | P41: 0.4153846154 | Q41: 0.1211033864
H42: Tennessee | K42: Champaign | L42: Dallas | M42: Texas | N42: 35 | O42: 0.6730769231 | P42: 0.6057692308 | Q42: 0.1766091052
H43: Texas | K43: Peoria | L43: Dayton | M43: Ohio | N43: 24 | O43: 0.4615384615 | P43: 0.4153846154 | Q43: 0.1211033864
H44: Utah | K44: Rockford | L44: Denver | M44: Colorado | N44: 23 | O44: 0.4423076923 | P44: 0.3980769231 | Q44: 0.116057412
H45: Vermont | J45: Indiana | K45: Fort Wayne | L45: Detroit | M45: Michigan | N45: 19 | O45: 0.3653846154 | P45: 0.3288461538 | Q45: 0.09587351424
H46: Virginia | K46: South Bend | L46: Dodge City | M46: Kansas | N46: 26 | O46: 0.5 | P46: 0.45 | Q46: 0.1311953353
H47: Washington | K47: Indianapolis | L47: Dover | M47: Delaware | N47: 24 | O47: 0.4615384615 | P47: 0.4153846154 | Q47: 0.1211033864
H48: West_Virginia | K48: Terre Haute | L48: Duluth | M48: Minnesota | N48: 13 | O48: 0.25 | P48: 0.225 | Q48: 0.06559766764
H49: Wisconsin | J49: Iowa | K49: Mason City | L49: Ely | M49: Nevada | N49: 20 | O49: 0.3846153846 | P49: 0.3461538462 | Q49: 0.1009194887
H50: Wyoming | K50: Sioux City | L50: Enid | M50: Oklahoma | N50: 28 | O50: 0.5384615385 | P50: 0.4846153846 | Q50: 0.1412872841
K51: Council Bluffs | L51: Eugene | M51: Oregon | N51: 15 | O51: 0.2884615385 | P51: 0.2596153846 | Q51: 0.07568961651
J52: Kansas | K52: Dodge City | L52: Fargo | M52: North_Dakota | N52: 17 | O52: 0.3269230769 | P52: 0.2942307692 | Q52: 0.08578156537
K53: Goodland | L53: Flagstaff | M53: Arizona | N53: 19 | O53: 0.3653846154 | P53: 0.3288461538 | Q53: 0.09587351424
K54: Kansas City, KS | L54: Fort Smith | M54: Arkansas | N54: 31 | O54: 0.5961538462 | P54: 0.5365384615 | Q54: 0.1564252074
K55: Wichita | L55: Fort Wayne | M55: Indiana | N55: 23 | O55: 0.4423076923 | P55: 0.3980769231 | Q55: 0.116057412
J56: Kentucky | K56: Louisville | L56: Glasgow | M56: Montana | N56: 18 | O56: 0.3461538462 | P56: 0.3115384615 | Q56: 0.09082753981
K57: Covington | L57: Goodland | M57: Kansas | N57: 24 | O57: 0.4615384615 | P57: 0.4153846154 | Q57: 0.1211033864
K58: Hopkinsville | L58: Grand Forks | M58: North_Dakota | N58: 17 | O58: 0.3269230769 | P58: 0.2942307692 | Q58: 0.08578156537
J59: Louisana | K59: New Orleans | L59: Grand Island | M59: Nebraska | N59: 23 | O59: 0.4423076923 | P59: 0.3980769231 | Q59: 0.116057412
K60: Alexandria | L60: Grand Junction | M60: Colorado | N60: 24 | O60: 0.4615384615 | P60: 0.4153846154 | Q60: 0.1211033864
K61: Shreveport | L61: Grand Rapids | M61: Michigan | N61: 19 | O61: 0.3653846154 | P61: 0.3288461538 | Q61: 0.09587351424
K62: Lake Charles | L62: Great Falls | M62: Montana | N62: 17 | O62: 0.3269230769 | P62: 0.2942307692 | Q62: 0.08578156537
J63: Maine | K63: Portland, ME | L63: Green Bay | M63: Wisconsin | N63: 18 | O63: 0.3461538462 | P63: 0.3115384615 | Q63: 0.09082753981
J64: Massachusetts | K64: Boston | L64: Greensboro | M64: North_Carolina | N64: 28 | O64: 0.5384615385 | P64: 0.4846153846 | Q64: 0.1412872841
K65: Springfield, MA | L65: Helena | M65: Montana | N65: 16 | O65: 0.3076923077 | P65: 0.2769230769 | Q65: 0.08073559094
K66: Lansing | L66: Hopkinsville | M66: Kentucky | N66: 28 | O66: 0.5384615385 | P66: 0.4846153846 | Q66: 0.1412872841
J67: Michigan | K67: Grand Rapids | L67: Houston | M67: Texas | N67: 42 | O67: 0.8076923077 | P67: 0.7269230769 | Q67: 0.2119309262
K68: Traverse City | L68: Huntsville | M68: Alabama | N68: 31 | O68: =N68/52 -> 0.5961538462 | P68: =O68*0.9 -> 0.5365384615 | Q68: =P68/$D$6 -> 0.1564252074
K69: Sault Sainte Marie | L69: Huron | M69: South_Dakota | N69: 20 | O69: 0.3846153846 | P69: 0.3461538462 | Q69: 0.1009194887
K70: Detroit | L70: Indianapolis | M70: Indiana | N70: 24 | O70: 0.4615384615 | P70: 0.4153846154 | Q70: 0.1211033864
J71: Minnesota | K71: Duluth | L71: International Falls | M71: Minnesota | N71: 14 | O71: 0.2692307692 | P71: 0.2423076923 | Q71: 0.07064364207
K72: International Falls | L72: Jackson | M72: Mississippi | N72: 35 | O72: 0.6730769231 | P72: 0.6057692308 | Q72: 0.1766091052
K73: Minneapolis | L73: Jacksonville | M73: Florida | N73: 42 | O73: 0.8076923077 | P73: 0.7269230769 | Q73: 0.2119309262
J74: Mississippi | K74: Biloxi | L74: Kansas City, KS | M74: Kansas | N74: 26 | O74: 0.5 | P74: 0.45 | Q74: 0.1311953353
K75: Jackson | L75: Kansas City, MO | M75: Missouri | N75: 26 | O75: 0.5 | P75: 0.45 | Q75: 0.1311953353
K76: Columbus, MS | L76: Knoxville | M76: Tennessee | N76: 29 | O76: 0.5576923077 | P76: 0.5019230769 | Q76: 0.1463332586
J77: Missouri | K77: Kansas City, MO | L77: Lake Charles | M77: Louisana | N77: 39 | O77: 0.75 | P77: 0.675 | Q77: 0.1967930029
K78: Columbia, MO | L78: Lansing | M78: Michigan | N78: 20 | O78: 0.3846153846 | P78: 0.3461538462 | Q78: 0.1009194887
K79: Springfield, MO | L79: Las Vegas | M79: Nevada | N79: 35 | O79: 0.6730769231 | P79: 0.6057692308 | Q79: 0.1766091052
K80: St. Louis | L80: Lewiston | M80: Idaho | N80: 19 | O80: 0.3653846154 | P80: 0.3288461538 | Q80: 0.09587351424
J81: Montana | K81: Billings | L81: Little Rock | M81: Arkansas | N81: 31 | O81: 0.5961538462 | P81: 0.5365384615 | Q81: 0.1564252074
K82: Glasgow | L82: Los Angeles | M82: California | N82: 33 | O82: 0.6346153846 | P82: 0.5711538462 | Q82: 0.1665171563
K83: Helena | L83: Louisville | M83: Kentucky | N83: 27 | O83: 0.5192307692 | P83: 0.4673076923 | Q83: 0.1362413097
K84: Great Falls | L84: Lubbock | M84: Texas | N84: 31 | O84: 0.5961538462 | P84: 0.5365384615 | Q84: 0.1564252074
J85: Nebraska | K85: Omaha | L85: Macon | M85: Georgia | N85: 35 | O85: 0.6730769231 | P85: 0.6057692308 | Q85: 0.1766091052
K86: Grand Island | L86: Madison | M86: Wisconsin | N86: 20 | O86: 0.3846153846 | P86: 0.3461538462 | Q86: 0.1009194887
K87: North Platt | L87: Manchester | M87: New_Hampshire | N87: 19 | O87: 0.3653846154 | P87: 0.3288461538 | Q87: 0.09587351424
J88: Nevada | K88: Las Vegas | L88: Mason City | M88: Iowa | N88: 20 | O88: 0.3846153846 | P88: 0.3461538462 | Q88: 0.1009194887
K89: Ely | L89: Medford | M89: Oregon | N89: 21 | O89: 0.4038461538 | P89: 0.3634615385 | Q89: 0.1059654631
K90: Winnemucca | L90: Memphis | M90: Tennessee | N90: 30 | O90: 0.5769230769 | P90: 0.5192307692 | Q90: 0.151379233
K91: Reno | L91: Miami | M91: Florida | N91: 50 | O91: 0.9615384615 | P91: 0.8653846154 | Q91: 0.2522987217
J92: New_Hampshire | K92: Manchester | L92: Milwaukee | M92: Wisconsin | N92: 21 | O92: 0.4038461538 | P92: 0.3634615385 | Q92: 0.1059654631
J93: New_Jersey | K93: Trenton | L93: Minneapolis | M93: Minnesota | N93: 19 | O93: 0.3653846154 | P93: 0.3288461538 | Q93: 0.09587351424
J94: New_Mexico | K94: Albuquerque | L94: Minot | M94: North_Dakota | N94: 16 | O94: 0.3076923077 | P94: 0.2769230769 | Q94: 0.08073559094
K95: Alamogordo | L95: Mobile | M95: Alabama | N95: 38 | O95: 0.7307692308 | P95: 0.6576923077 | Q95: 0.1917470285
K96: Clovis | L96: Montgomery | M96: Alabama | N96: 35 | O96: 0.6730769231 | P96: 0.6057692308 | Q96: 0.1766091052
J97: New_York | K97: Albany | L97: Myrtle Beach | M97: South_Carolina | N97: 32 | O97: 0.6153846154 | P97: 0.5538461538 | Q97: 0.1614711819
K98: Buffalo | L98: Nashville | M98: Tennessee | N98: 28 | O98: 0.5384615385 | P98: 0.4846153846 | Q98: 0.1412872841
K99: Syracuse | L99: New Orleans | M99: Louisana | N99: 40 | O99: 0.7692307692 | P99: 0.6923076923 | Q99: 0.2018389773
K100: New York City | L100: New York City | M100: New_York | N100: 20 | O100: 0.3846153846 | P100: 0.3461538462 | Q100: 0.1009194887
J101: North_Carolina | K101: Greensboro | L101: North Platt | M101: Nebraska | N101: 22 | O101: 0.4230769231 | P101: 0.3807692308 | Q101: 0.1110114375
K102: Raleigh | L102: Oklahoma City | M102: Oklahoma | N102: 30 | O102: 0.5769230769 | P102: 0.5192307692 | Q102: 0.151379233
K103: Wilmington, NC | L103: Omaha | M103: Nebraska | N103: 23 | O103: 0.4423076923 | P103: 0.3980769231 | Q103: 0.116057412
J104: North_Dakota | K104: Bismarck | L104: Orlando | M104: Florida | N104: 46 | O104: 0.8846153846 | P104: 0.7961538462 | Q104: 0.232114824
K105: Grand Forks | L105: Pendleton | M105: Oregon | N105: 20 | O105: 0.3846153846 | P105: 0.3461538462 | Q105: 0.1009194887
K106: Minot | L106: Pensacola | M106: Florida | N106: 38 | O106: 0.7307692308 | P106: 0.6576923077 | Q106: 0.1917470285
K107: Fargo | L107: Peoria | M107: Illinois | N107: 24 | O107: 0.4615384615 | P107: 0.4153846154 | Q107: 0.1211033864
J108: Ohio | K108: Cleveland | L108: Philadelphia | M108: Pennsylvania | N108: 24 | O108: 0.4615384615 | P108: 0.4153846154 | Q108: 0.1211033864
K109: Dayton | L109: Phoenix | M109: Arizona | N109: 41 | O109: 0.7884615385 | P109: 0.7096153846 | Q109: 0.2068849518
K110: Columbus, OH | L110: Pittsburgh | M110: Pennsylvania | N110: 22 | O110: 0.4230769231 | P110: 0.3807692308 | Q110: 0.1110114375
K111: Toledo | L111: Pocatello | M111: Idaho | N111: 19 | O111: 0.3653846154 | P111: 0.3288461538 | Q111: 0.09587351424
K112: Cincinnati | L112: Portland, ME | M112: Maine | N112: 16 | O112: 0.3076923077 | P112: 0.2769230769 | Q112: 0.08073559094
J113: Oklahoma | K113: Altus | L113: Portland, OR | M113: Oregon | N113: 16 | O113: 0.3076923077 | P113: 0.2769230769 | Q113: 0.08073559094
K114: Oklahoma City | L114: Providence | M114: Rhode_Island | N114: 19 | O114: 0.3653846154 | P114: 0.3288461538 | Q114: 0.09587351424
K115: Tulsa | L115: Raleigh | M115: North_Carolina | N115: 30 | O115: 0.5769230769 | P115: 0.5192307692 | Q115: 0.151379233
K116: Enid | L116: Rapid City | M116: South_Dakota | N116: 20 | O116: 0.3846153846 | P116: 0.3461538462 | Q116: 0.1009194887
J117: Oregon | K117: Burns | L117: Reno | M117: Nevada | N117: 22 | O117: 0.4230769231 | P117: 0.3807692308 | Q117: 0.1110114375
K118: Medford | L118: Richmond | M118: Virginia | N118: 27 | O118: 0.5192307692 | P118: 0.4673076923 | Q118: 0.1362413097
K119: Pendleton | L119: Roanoke | M119: Virginia | N119: 26 | O119: 0.5 | P119: 0.45 | Q119: 0.1311953353
K120: Portland, OR | L120: Rock Springs | M120: Wyoming | N120: 17 | O120: 0.3269230769 | P120: 0.2942307692 | Q120: 0.08578156537
K121: Eugene | L121: Rockford | M121: Illinois | N121: 21 | O121: 0.4038461538 | P121: 0.3634615385 | Q121: 0.1059654631
J122: Pennsylvania | K122: Pittsburgh | L122: Sacramanto | M122: California | N122: 28 | O122: 0.5384615385 | P122: 0.4846153846 | Q122: 0.1412872841
K123: Scranton | L123: Salt Lake City | M123: Utah | N123: 20 | O123: 0.3846153846 | P123: 0.3461538462 | Q123: 0.1009194887
K124: Williamsport | L124: San Antonio | M124: Texas | N124: 41 | O124: 0.7884615385 | P124: 0.7096153846 | Q124: 0.2068849518
K125: Philadelphia | L125: San Diego | M125: California | N125: 30 | O125: 0.5769230769 | P125: 0.5192307692 | Q125: 0.151379233
J126: Rhode_Island | K126: Providence | L126: San Francisco | M126: California | N126: 22 | O126: 0.4230769231 | P126: 0.3807692308 | Q126: 0.1110114375
J127: South_Carolina | K127: Charleston, SC | L127: Santa Barbara | M127: California | N127: 32 | O127: 0.6153846154 | P127: 0.5538461538 | Q127: 0.1614711819
K128: Columbia, SC | L128: Sault Sainte Marie | M128: Michigan | N128: 13 | O128: 0.25 | P128: 0.225 | Q128: 0.06559766764
K129: Myrtle Beach | L129: Savannah | M129: Georgia | N129: 38 | O129: 0.7307692308 | P129: 0.6576923077 | Q129: 0.1917470285
J130: South_Dakota | K130: Rapid City | L130: Scranton | M130: Pennsylvania | N130: 20 | O130: 0.3846153846 | P130: 0.3461538462 | Q130: 0.1009194887
K131: Huron | L131: Seattle | M131: Washington | N131: 19 | O131: 0.3653846154 | P131: 0.3288461538 | Q131: 0.09587351424
K132: Sioux Falls | L132: Shreveport | M132: Louisana | N132: 35 | O132: =N132/52 -> 0.6730769231 | P132: =O132*0.9 -> 0.6057692308 | Q132: =P132/$D$6 -> 0.1766091052
J133: Tennessee | K133: Memphis | L133: Sioux City | M133: Iowa | N133: 22 | O133: 0.4230769231 | P133: 0.3807692308 | Q133: 0.1110114375
K134: Nashville | L134: Sioux Falls | M134: South_Dakota | N134: 21 | O134: 0.4038461538 | P134: 0.3634615385 | Q134: 0.1059654631
K135: Knoxville | L135: South Bend | M135: Indiana | N135: 21 | O135: 0.4038461538 | P135: 0.3634615385 | Q135: 0.1059654631
J136: Texas | K136: Amarillo | L136: Spokane | M136: Washington | N136: 16 | O136: 0.3076923077 | P136: 0.2769230769 | Q136: 0.08073559094
K137: Lubbock | L137: Springfield, MA | M137: Massachusetts | N137: 20 | O137: 0.3846153846 | P137: 0.3461538462 | Q137: 0.1009194887
K138: Dallas | L138: Springfield, MO | M138: Missouri | N138: 27 | O138: 0.5192307692 | P138: 0.4673076923 | Q138: 0.1362413097
K139: San Antonio | L139: St. Louis | M139: Missouri | N139: 26 | O139: 0.5 | P139: 0.45 | Q139: 0.1311953353
K140: Corpus Christi | L140: Syracuse | M140: New_York | N140: 19 | O140: 0.3653846154 | P140: 0.3288461538 | Q140: 0.09587351424
K141: Houston | L141: Tampa | M141: Florida | N141: 46 | O141: 0.8846153846 | P141: 0.7961538462 | Q141: 0.232114824
J142: Utah | K142: Salt Lake City | L142: Terre Haute | M142: Indiana | N142: 25 | O142: 0.4807692308 | P142: 0.4326923077 | Q142: 0.1261493608
K143: Wendover | L143: Toledo | M143: Ohio | N143: 21 | O143: 0.4038461538 | P143: 0.3634615385 | Q143: 0.1059654631
J144: Vermont | K144: Burlington | L144: Traverse City | M144: Michigan | N144: 17 | O144: 0.3269230769 | P144: 0.2942307692 | Q144: 0.08578156537
J145: Virginia | K145: Richmond | L145: Trenton | M145: New_Jersey | N145: 23 | O145: 0.4423076923 | P145: 0.3980769231 | Q145: 0.116057412
K146: Roanoke | L146: Trinidad | M146: Colorado | N146: 25 | O146: 0.4807692308 | P146: 0.4326923077 | Q146: 0.1261493608
J147: Washington | K147: Seattle | L147: Tulsa | M147: Oklahoma | N147: 30 | O147: 0.5769230769 | P147: 0.5192307692 | Q147: 0.151379233
K148: Spokane | L148: Tuscon | M148: Arizona | N148: 40 | O148: 0.7692307692 | P148: 0.6923076923 | Q148: 0.2018389773
J149: West_Virginia | K149: Charleston, WV | L149: Valdosta | M149: Georgia | N149: 39 | O149: 0.75 | P149: 0.675 | Q149: 0.1967930029
K150: Clarksburg | L150: Washington, DC | M150: DC | N150: 26 | O150: 0.5 | P150: 0.45 | Q150: 0.1311953353
J151: Wisconsin | K151: Madison | L151: Wendover | M151: Utah | N151: 22 | O151: 0.4230769231 | P151: 0.3807692308 | Q151: 0.1110114375
K152: Green Bay | L152: Wichita | M152: Kansas | N152: 27 | O152: 0.5192307692 | P152: 0.4673076923 | Q152: 0.1362413097
K153: Milwaukee | L153: Williamsport | M153: Pennsylvania | N153: 21 | O153: 0.4038461538 | P153: 0.3634615385 | Q153: 0.1059654631
J154: Wyoming | K154: Casper | L154: Wilmington, DE | M154: Delaware | N154: 24 | O154: 0.4615384615 | P154: 0.4153846154 | Q154: 0.1211033864
K155: Cheyenne | L155: Wilmington, NC | M155: North_Carolina | N155: 34 | O155: 0.6538461538 | P155: 0.5884615385 | Q155: 0.1715631307
K156: Rock Springs | L156: Winnemucca | M156: Nevada | N156: 22 | O156: 0.4230769231 | P156: 0.3807692308 | Q156: 0.1110114375
N160: =SUM(N4:N156) -> 3955

Sheet Cost_Breakdown
C2: Lighting Cost Breakdown
B3: Energy Costs
B4: No. of fixtures | F4: 113
B5: Energy per fixture (watts) | F5: 460 | H5: Energy
B6: Energy rate per kWh | F6: 0.11 | H6: Costs
B7: Burning hours per year | F7: 5000
B8: Annual energy cost per year | F8: =F5*F4*F6*F7/1000 -> 28589
B9: Lamp Costs
B10: No. of Lamps | F10: 113
B11: Lamp life | F11: 20000
B12: Burning hours per year | F12: 5000
B13: Fraction of lamps replaced every year | F13: =F12/F11 -> 0.25
B14: No. of lamps replaced each year | F14: =F13*F10 -> 28.25
B15: Cost per lamp | F15: 25
B16: Labor to replace 1 lamp | F16: 40
B17: Disposal cost per lamp | F17: 1 | H17: Lamp
B18: Annual lamp replacement (material) | F18: =F14*F15 -> 706.25 | H18: Replacement
B19: Annual lamp replacement (labor) | F19: =F14*F16 -> 1130 | H19: Costs
B20: Annual lamp disposal | F20: =F14*F17 -> 28.25
B21: Annualized lamp maintenance cost | F21: =F18+F19+F20 -> 1864.5
B22: Ballast Costs
B23: No. of ballasts | F23: 113
B24: Ballast life (use 84,000 for magnetic, 60,000 electronic) | F24: 84000
B25: Burning hours per year | F25: 5000
B26: Fraction of ballasts replaced every year | F26: =F25/F24 -> 0.05952380952
B27: No. of ballasts replaced each year | F27: =F26*F23 -> 6.726190476
B28: Cost per ballast | F28: 65
B29: Labor to replace 1 ballast | F29: 50
B30: Disposal cost per ballast | F30: 2
B31: Annual ballast replacement (material) | F31: =F27*F28 -> 437.202381 | H31: Ballast
B32: Annual ballast replacement (labor) | F32: =F27*F29 -> 336.3095238 | H32: Replacement
B33: Annual ballast disposal | F33: =F27*F30 -> 13.45238095 | H33: Costs
B34: Annualized ballast maintenance cost | F34: =F31+F32+F33 -> 786.9642857
B35: Facility Disruption Costs
B36: Total number of events (lamp or ballast failures) | F36: =F14+F27 -> 34.97619048 | H36: Facility
B37: Disruption cost per event | F37: 25 | H37: Disruption
B38: Annual disruption cost to facility | F38: =F36*F$37 -> 874.4047619 | H38: Costs
B40: Total energy and maintenance costs | F40: =F38+F34+F21+F8 -> 32114.86905
B42: Breakdown 1 | F42: Breakdown 2
B43: Lamps | C43: =F21 -> 1864.5 | D43: =C43/C$48 -> 0.05805721945 | F43: Materials | G43: =F18+F31 -> 1143.452381 | H43: =G43/G$48 -> 0.03560507687
B44: Ballasts | C44: =F34 -> 786.9642857 | D44: =C44/C$48 -> 0.02450467055 | F44: Labor | G44: =F19+F32 -> 1466.309524 | H44: 0.04565827504
B45: Disruption | C45: =F38 -> 874.4047619 | D45: 0.02722741172 | F45: Disposal | G45: =F20+F33 -> 41.70238095 | H45: 0.001298538097
B46: Energy | C46: =F8 -> 28589 | D46: 0.8902106983 | F46: Disruption | G46: =F38 -> 874.4047619 | H46: 0.02722741172
F47: Energy | G47: =F8 -> 28589 | H47: 0.8902106983
B48: TOTAL | C48: =SUM(C43:C46) -> 32114.86905 | D48: 1 | F48: TOTAL | G48: =SUM(G43:G47) -> 32114.86905 | H48: 1

Sheet Cost_of_Ownership
C1: Cash Outlay versus Time
C2: Green cells require user input
C3: Energy rate per kWh | D3: 0.1 | E3: Burning hr. per yr. | F3: 4000
D4: LED System 1 | E4: LED System 2 | F4: LED System 3 | K4: Initial Cost and Ongoing Energy Costs plus replacement costs | N4: Replacement Costs (assuming no rebates)
C5: Description | J5: year | K5: System 1 | L5: System 2 | M5: System 3 | N5: Sys 1 | O5: Sys 2 | P5: Sys 3
C6: No. of fixtures | D6: 140 | E6: 140 | F6: 200 | J6: 0 | K6: =D12 -> 15400 | L6: =E12 -> 18200 | M6: 34000 | N6: =IF($J6>D$14,IF(($J6-1)<=D$14,D$15,0),0)+IF($J6>2*D$14,IF(($J6-1)<=2*D$14,D$15,0),0)+IF($J6>3*D$14,IF(($J6-1)<=3*D$14,D$15,0),0) -> 0 | O6: =IF($J6>E$14,IF(($J6-1)<=E$14,E$15,0),0)+IF($J6>2*E$14,IF(($J6-1)<=2*E$14,E$15,0),0)+IF($J6>3*E$14,IF(($J6-1)<=3*E$14,E$15,0),0) -> 0 | P6: 0
C7: Fixture Watts | D7: 76 | E7: 46 | F7: 38 | J7: 1 | K7: =K6+D$18+N7 -> 19656 | L7: =L6+E$18+O7 -> 20776 | M7: =M6+F$18+P7 -> 37040 | N7: =IF($J7>D$14,IF(($J7-1)<=D$14,D$15,0),0)+IF($J7>2*D$14,IF(($J7-1)<=2*D$14,D$15,0),0)+IF($J7>3*D$14,IF(($J7-1)<=3*D$14,D$15,0),0) -> 0 | O7: 0 | P7: 0
C8: Fixture Cost | D8: 120 | E8: 150 | F8: 200 | J8: 2 | K8: =K7+D$18+N8 -> 23912 | L8: 23352 | M8: 40080 | N8: 0 | O8: 0 | P8: 0
C9: Labor to Install Fixture | D9: 50 | E9: 50 | F9: 50 | J9: 3 | K9: 28168 | L9: 25928 | M9: 43120 | N9: 0 | O9: 0 | P9: 0
C10: Rebate (put in brackets or use - sign) per fixture | D10: -60 | E10: -70 | F10: -80 | J10: 4 | K10: 32424 | L10: 28504 | M10: 46160 | N10: 0 | O10: 0 | P10: 0
C11: Investment to Install each fixture | D11: =SUM(D8:D10) -> 110 | E11: =SUM(E8:E10) -> 130 | F11: 170 | J11: 5 | K11: 36680 | L11: 31080 | M11: 49200 | N11: 0 | O11: 0 | P11: 0
C12: Investment to Install entire site (all fixtures) | D12: =D6*(D8+D9+D10) -> 15400 | E12: =E6*(E8+E9+E10) -> 18200 | F12: =F6*(F8+F9+F10) -> 34000 | J12: 6 | K12: 40936 | L12: 33656 | M12: 52240 | N12: 0 | O12: 0 | P12: 0
C13: Fixture Life (Hours) | D13: 30000 | E13: 35000 | F13: 50000 | J13: 7 | K13: 45192 | L13: 36232 | M13: 55280 | N13: 0 | O13: 0 | P13: 0
C14: Fixture Life (Years, based on burn hr.) | D14: =D13/$F$3 -> 7.5 | E14: =E13/$F$3 -> 8.75 | F14: =F13/$F$3 -> 12.5 | J14: 8 | K14: 73248 | L14: 38808 | M14: 58320 | N14: 23800 | O14: 0 | P14: 0
C15: Cost to replace fixtures at end of life (no rebate) | D15: =D12-D10*D6 -> 23800 | E15: =E12-E10*E6 -> 28000 | F15: 50000 | J15: 9 | K15: 77504 | L15: 69384 | M15: 61360 | N15: 0 | O15: 28000 | P15: 0
C16: Annualized Fixture Investment (per fixture) | D16: =D11/D14 -> 14.66666667 | E16: =E11/E14 -> 14.85714286 | F16: 13.6 | J16: 10 | K16: 81760 | L16: 71960 | M16: 64400 | N16: 0 | O16: 0 | P16: 0
C17: Annualized Fixture Investment (all fixtures) | D17: =D12/D14 -> 2053.333333 | E17: =E12/E14 -> 2080 | F17: 2720 | J17: 11 | K17: 86016 | L17: 74536 | M17: 67440 | N17: 0 | O17: 0 | P17: 0
C18: Annual Energy Cost | D18: =D6*D7*$F$3*$D$3/1000 -> 4256 | E18: =E6*E7*$F$3*$D$3/1000 -> 2576 | F18: =F6*F7*$F$3*$D$3/1000 -> 3040 | J18: 12 | K18: 90272 | L18: 77112 | M18: 70480 | N18: 0 | O18: 0 | P18: 0
C19: Total Annualized Cost (excluding A/C) | D19: =D17+D18 -> 6309.333333 | E19: =E17+E18 -> 4656 | F19: 5760 | J19: 13 | K19: 94528 | L19: 79688 | M19: 123520 | N19: 0 | O19: 0 | P19: 50000
J20: 14 | K20: 98784 | L20: 82264 | M20: 126560 | N20: 0 | O20: 0 | P20: 0
J21: 15 | K21: 103040 | L21: 84840 | M21: 129600 | N21: 0 | O21: 0 | P21: 0
J22: 16 | K22: 131096 | L22: 87416 | M22: 132640 | N22: 23800 | O22: 0 | P22: 0
J23: 17 | K23: 135352 | L23: 89992 | M23: 135680 | N23: 0 | O23: 0 | P23: 0
J24: 18 | K24: =K23+D$18+N24 -> 139608 | L24: 120568 | M24: 138720 | N24: 0 | O24: 28000 | P24: 0
J25: 19 | K25: 143864 | L25: 123144 | M25: 141760 | N25: 0 | O25: 0 | P25: 0
J26: 20 | K26: 148120 | L26: 125720 | M26: 144800 | N26: 0 | O26: 0 | P26: 0

Sheet IES_file_generator
D2: Candela Curve and IES File Generator
B5: Lamp Description | E5: LED18D38OW3840/25 | F5: Watts | G5: 18
B6: Product Code | E6: 93171 | F6: CBCP (Candelas) | G6: 6500
B7: Life (optional) hr. | E7: 25000 | F7: Beam Angle | G7: 25
B8: Cone Diagram Information | E8: Click here when data entry complete
B9: Distance | C9: fc at | D9: Beam
B10: (feet) | C10: center | D10: diameter (ft)
B11: 1 | C11: =$G$6/(B11^2) -> 6500 | D11: =B11*2*TAN(RADIANS($G$7/2)) -> 0.4433893253 | E11: Cone Diagram
B12: 2 | C12: 1625 | D12: 0.8867786506
B13: 3 | C13: 722.2222222 | D13: 1.330167976
B14: 4 | C14: 406.25 | D14: 1.773557301 | E14: =G7 -> 25
B15: 5 | C15: 260 | D15: 2.216946626 | E15: deg.
B16: 6 | C16: 180.5555556 | D16: 2.660335952
B17: 7 | C17: 132.6530612 | D17: 3.103725277
B18: 8 | C18: 101.5625 | D18: 3.547114602
B19: 9 | C19: 80.24691358 | D19: 3.990503928
B20: 10 | C20: 65 | D20: 4.433893253
B21: 15 | C21: 28.88888889 | D21: 6.650839879
B22: 20 | C22: 16.25 | D22: 8.867786506
B23: 30 | C23: 7.222222222 | D23: 13.30167976
M25: 1 | N25: 2 | O25: 3 | P25: 4 | Q25: 5 | R25: 6 | S25: 7 | T25: 8 | U25: 9 | V25: 10 | W25: 11 | X25: 12 | Y25: 13 | Z25: 14 | AA25: 15 | AB25: 16 | AC25: 17 | AD25: 18 | AE25: 19 | AF25: 20 | AG25: 21 | AH25: 22 | AI25: 23 | AJ25: 24 | AK25: 25 | AL25: 26 | AM25: 27 | AN25: 28 | AO25: 29 | AP25: 30 | AQ25: 31 | AR25: 32
J26: Generic Curve 20 degree beam | K26: Curve | L26: Angle | M26: 0 | N26: 1 | O26: 2 | P26: 3 | Q26: 4 | R26: 5 | S26: 6 | T26: 7 | U26: 8 | V26: 10 | W26: 12 | X26: 14 | Y26: 16 | Z26: 18 | AA26: 20 | AB26: 22 | AC26: 24 | AD26: 28 | AE26: 32 | AF26: 36 | AG26: 40 | AH26: 44 | AI26: 48 | AJ26: 52 | AK26: 56 | AL26: 60 | AM26: 64 | AN26: 68 | AO26: 72 | AP26: 76 | AQ26: 80 | AR26: 90
J27: 20 deg. | K27: beam | L27: Candelas | M27: 10000.00017 | N27: 9932.045749 | O27: 9728.182472 | P27: 9405.39895 | Q27: 8929.71797 | R27: 8352.105352 | S27: 7587.618063 | T27: 6857.107987 | U27: 6177.56373 | V27: 4988.361281 | W27: 3969.044895 | X27: 3153.591787 | Y27: 2508.024743 | Z27: 1930.412125 | AA27: 1420.753932 | AB27: 1047.004591 | AC27: 741.2096754 | AD27: 401.437547 | AE27: 250 | AF27: 220 | AG27: 190 | AH27: 140 | AI27: 90 | AJ27: 60 | AK27: 30 | AL27: 19 | AM27: 12 | AN27: 9 | AO27: 6 | AP27: 3 | AQ27: 0 | AR27: 0
I29: Specific | J29: Scaling | K29: =G7/20 -> 1.25 | L29: Angle | M29: =$K$29*M26 -> 0 | N29: =IF(N25>=$K$32,90,$K$29*N26) -> 1.25 | O29: =IF(O25>=$K$32,90,$K$29*O26) -> 2.5 | P29: 3.75 | Q29: 5 | R29: 6.25 | S29: 7.5 | T29: 8.75 | U29: 10 | V29: 12.5 | W29: 15 | X29: 17.5 | Y29: 20 | Z29: 22.5 | AA29: 25 | AB29: 27.5 | AC29: 30 | AD29: 35 | AE29: 40 | AF29: 45 | AG29: 50 | AH29: 55 | AI29: 60 | AJ29: 65 | AK29: 70 | AL29: 75 | AM29: 80 | AN29: 85 | AO29: 90 | AP29: 90 | AQ29: 90 | AR29: 90
I30: Curve | K30: =G6/10000 -> 0.65 | L30: Candelas | M30: =$K$30*M27 -> 6500.000114 | N30: =$K$30*N27 -> 6455.829737 | O30: 6323.318607 | P30: 6113.509318 | Q30: 5804.316681 | R30: 5428.868479 | S30: 4931.951741 | T30: 4457.120192 | U30: 4015.416425 | V30: 3242.434832 | W30: 2579.879182 | X30: 2049.834662 | Y30: 1630.216083 | Z30: 1254.767881 | AA30: 923.490056 | AB30: 680.5529841 | AC30: 481.786289 | AD30: 260.9344055 | AE30: 162.5 | AF30: 143 | AG30: 123.5 | AH30: 91 | AI30: 58.5 | AJ30: 39 | AK30: 19.5 | AL30: 12.35 | AM30: 7.8 | AN30: 5.85 | AO30: 3.9 | AP30: 1.95 | AQ30: 0 | AR30: 0
K31: Rounded | L31: Candelas | M31: =ROUND(M30,0) -> 6500 | N31: =ROUND(N30,0) -> 6456 | O31: 6323 | P31: 6114 | Q31: 5804 | R31: 5429 | S31: 4932 | T31: 4457 | U31: 4015 | V31: 3242 | W31: 2580 | X31: 2050 | Y31: 1630 | Z31: 1255 | AA31: 923 | AB31: 681 | AC31: 482 | AD31: 261 | AE31: 163 | AF31: 143 | AG31: 124 | AH31: 91 | AI31: 59 | AJ31: 39 | AK31: 20 | AL31: 12 | AM31: 8 | AN31: 6 | AO31: 4 | AP31: 2 | AQ31: 0 | AR31: 0
I32: Datapoints | K32: =VLOOKUP(G7,J35:K52,2,TRUE) -> 29
J33: Beam | K33: Data
J34: angle | K34: points
J35: 1 | K35: 32
I36: 20 | J36: 20.1 | K36: 31
J37: 22.5 | K37: 30
J38: 23.7 | K38: 29
I39: 25 | J39: 25.1 | K39: 28
J40: 26.5 | K40: 27
J41: 28.2 | K41: 26
I42: 30 | J42: 30.1 | K42: 25
I43: 32 | J43: 32.1 | K43: 24
J44: 34.7 | K44: 23
J45: 37.6 | K45: 22
I46: 41 | J46: 41 | K46: 21
I47: 45 | J47: 45.1 | K47: 20
I48: 50 | J48: 50.1 | K48: 19
J49: 56.3 | K49: 18
J50: 64.3 | K50: 17
I51: 75 | J51: 75.1 | K51: 16
J52: 90 | K52: 15

Sheet Rebates

Sheet Asset_Increase
B2: Asset Value Increase Payback including rental income
C15: Building A Fluorescent | D15: Building B LED
B16: Area of Building (sq. ft.) | C16: 200000
B17: No of fixtures | C17: 2000
B18: Burn hours | C18: 4200
B19: Energy rate per kWh | C19: 0.11
B20: Type of fixture | C20: Fluorescent | D20: LED
B21: Wattage of fixture | C21: 80 | D21: 50
B22: Annual energy cost | C22: =C17*C21*C18*C19/1000 -> 73920 | D22: =C17*C18*C19*D21/1000 -> 46200
B23: Energy Savings | D23: =C22-D22 -> 27720
B24: Cost to upgrade per fixture | D24: 150
B25: Total Investment needed | D25: =C17*D24 -> 300000
B26: Simple Payback with energy only (years) | D26: =D25/D23 -> 10.82251082 | E26: years
B27: Now let us include maintenance costs and rent increase benefits
B28: Rent per sq. ft. | C28: 15 | D28: 15
B29: Rent If fully occupied | C29: =C16*C28 -> 3000000 | D29: =C16*D28 -> 3000000
B30: Occupancy | C30: 0.84 | D30: 0.88
B31: Rent with occupancy % | C31: =C29*C30 -> 2520000 | D31: =D29*D30 -> 2640000
B32: Increase in annual rent | D32: =D31-C31 -> 120000
B33: The numbers below might show that the real benefit of converting to LEDs is not merely energy or maintenance savings, but the building improvement leading to increase in rental income.
B34: Payback with energy + maintenance | D34: =D25/(D23+3000) -> 9.765625 | E34: years
B35: Payback with energy + maintenance + rent increase | D35: =D25/(D23+3000+D32) -> 1.99044586 | E35: years
B36: Using a capitalization model and the numbers above, we can estimate the increase in asset value of the building from putting in the LED upgrade, or, alternately, the increase in effective CAP rate*. This calculation requires an estimate of net operating costs to arrive at net operating income. *CAP rate = net operating income/purchase price of building
B37: Buiding purchase price | C37: 3000000
B38: Gross Income from rent | C38: =C31 -> 2520000 | D38: =D31 -> 2640000
B39: Building operating costs | C39: 2100000
B40: Net operating income | C40: =C38-C39 -> 420000 | D40: =D38-C39 -> 540000
B41: Effective increase in asset | D41: =(-1+D40/C40)*C37 -> 857142.8571
B42: Alternate: CAP rate increase | C42: =C40/C37 -> 0.14 | D42: =D40/C37 -> 0.18

Sheet Disclaimer
